{"text_format":"1","workbook":"xlsx","n_sheets":5,"sheets":["Listas","Propuesta","Propuesta (2)","Hoja1","Sub. Energía Eléctrica"],"not_rendered":{"charts":0,"images":9,"macros":1,"external_links":0,"defined_names":20,"comments":1,"pivot_tables":0},"unopened":[],"bounds":{"document_bytes":16777216,"sheet_cells":100000,"rows_first":2000,"rows_last":500,"rows_between":2000,"halvings":0,"cell_chars":16384,"cell_head_chars":4096},"cells_cut":0,"cells_raw":0,"read":"whole","date_system":"1900"}

{"sheet":"Listas","index":0,"n_rows":77,"n_cols":33,"rows_kept":77,"cut":false,"hidden":true,"merged":[]}
["TRANSFORMACIÓN","CATALIZADORES","ITÉM","Catalizador","Itém",null,"DEPENDENCIA FORMULADORA","CÓD. DEPENDENCIA","UNIDAD DE MEDIDA","POLITICA MIPG","DIMENSION MIPG",null,"PLAN INSTITUCIONAL","PROYECTO DE INVERSIÓN","DEPENDENCIA / AREA","PROCESO",null,"ÁREA","COMPROMISOS PLAN ESTRATÉGICO","PESO","ÁREA","CÓD. DEPENDENCIA",null,"ÁREA","ENTREGABLE","OBJETIVO ESTRATÉGICO",null,null,null,"ESTRATEGIA","UNIDAD","COMPROMISO PLAN ESTRATÉGICO SECTORIAL","PROYECTOS DE INVERSIÓN ASOCIADO"]
["1. Ordenamiento del territorio alrededor del agua y justicia ambiental","1. Justicia ambiental y gobernanza inclusiva",null,"TRANSFORMACIÓN_1","CATALIZADOR1_1","N.A.","Direción General",100,"Valor Absoluto","POL-01 Gestión Estratégica del Talento Humano","Talento Humano","Aplica plan de cierre brechas MIPG ejecución 2024 (https://docs.google.com/spreadsheets/d/12wAAPdMixVtk_TbZTJ1d8YFngavI0G5y/edit?usp=drive_link&ouid=110542959850421734996&rtpof=true&sd=true)","Plan Institucional de Archivos de la Entidad ­PINAR","Inversión - Desarrollo de estrategias para dotar de sentido social y ambiental la planeación minero energética a nivel Nacional","Dirección General - GIT Planeación","Direccionamiento Estratégico",1,"Dirección General - ET","Implementar una estrategia de integración de variables, sociales y ambientales en los productos técnicos de la UPME",0.2,"Dirección General - ET",100,1,"Dirección General - ET","• Estrategia de integración implementada","1.Fortalecer la planeación y la investigación con estándares científicos, integrando los componentes social, ambiental, de cambio climático, territorial, étnico, de género, diferencial desde una mirada interseccional para la Transición Energética Justa.","1.Fortalecer la planeación y la investigación con estándares científicos, integrando los componentes social, ambiental, de cambio climático, territorial, étnico, de género, diferencial desde una mirada interseccional para la Transición Energética Justa.","2.Consolidar la modernización de la entidad para fortalecer la planeación minero energética del país y el rol como el CIO del sector.","3.Propiciar posturas técnicas disruptivas y transformadoras, desde la planificación minero energética integral, para propender por cambios en materia económica, social y fiscal del país.","1.Generar nuevas metodologías, modelos de optimización y adopción de tecnologías adecuados a la realidad del país, en términos de normatividad, regulación, operación del sistema energético y necesidades de señales de política energética. (Obj. 1 y 3)","Plan","Desarrollo del PAI-PROURE (Eficiencia Energética)","Fortalecimiento del sector en la planificación de la atención de la demanda energética nacional y la transición energética justa a nivel nacional"]
[null,"2. El agua y las personas como determinantes del ordenamiento territorial. ",null,"TRANSFORMACIÓN_1","CATALIZADOR1_2","N.A.","Grupo de Planeación",101,"Porcentaje","POL-02 Integridad","Talento Humano","No aplica","Plan Anual de Adquisiciones","Inversión - Implementación de acciones para la confiabilidad del subsector eléctrico a nivel Nacional","Dirección General - Control Interno","Comunicación Estratégica",2,"Dirección General - ET","Implementar una estrategia de Integración de la perspectiva de género en los procesos técnicos de la UPME",0.2,"Dirección General - GIT Planeación",101,2,"Dirección General - ET","• Estrategia de integración implementada","2.Consolidar la modernización de la entidad para fortalecer la planeación minero energética del país y el rol como el CIO del sector.","1.Generar nuevas metodologías, modelos de optimización y adopción de tecnologías adecuados a la realidad del país, en términos de normatividad, regulación, operación del sistema energético y necesidades de señales de política energética.","5.Fortalecer la gobernanza de la información, mediante la adopción de herramientas tecnológicas que faciliten la gestión adecuada de los datos e información para la planeación y la investigación.","1.Generar nuevas metodologías, modelos de optimización y adopción de tecnologías adecuados a la realidad del país, en términos de normatividad, regulación, operación del sistema energético y necesidades de señales de política energética.","2.Aumentar y estructurar la presencia en el territorio para diseñar e implementar las herramientas que permitan incorporar la visión social, ambiental, de cambio climático, territorial, étnico, de género, diferencial en los planes estudios y proyectos que realiza la UPME. (Obj. 1 )","Documento","Fortalecimiento del Sistema Eléctrico para la TEJ","Fortalecimiento de la planeación para reducir las limitaciones en la prestación del servicio de energía eléctrica y la atención plena de la demanda nacional"]
[null,"3. Coordinación de los instrumentos de planificación de territorios vitales",null,"TRANSFORMACIÓN_1","CATALIZADOR1_3","N.A.","Secretaria General",110,null,"POL-03 Planeación Institucional","Direccionamiento Estratégico",null,"Plan Anual de Vacantes","Inversión - Asesoría para la seguridad energética y el seguimiento del PEN a nivel Nacional","Secretaría General - GIT Gestión Administrativa","Información Sectorial",3,"Dirección General - ET","Fortalecer el Enfoque y presencia territorial- étnica  para la planeación Minero- Energética",7.4999999999999997E-2,"Oficina de Gestión de la Información",130,3,"Dirección General - ET","• Estrategia de la UPME al territorio implementada \n","3.Propiciar posturas técnicas disruptivas y transformadoras, desde la planificación minero energética integral, para propender por cambios en materia económica, social y fiscal del país.","2.Aumentar y estructurar la presencia en el territorio para diseñar e implementar las herramientas que permitan incorporar la visión social, ambiental, de cambio climático, territorial, étnico, de género, diferencial en los planes estudios y proyectos que realiza la UPME.","7.Fortalecer y ampliar la capacidad institucional para proponer política minero energética disruptiva y trasformadora para la discusión nacional y los espacios de decisión de cara a la TEJ.","3.Definir e implementar herramientas de diálogo y apropiación social de conocimiento científico.","3.Definir e implementar herramientas de diálogo y apropiación social de conocimiento científico. (Obj. 1 y 3)","Documento aprobado / oficializado","Adjudicar regasificadora del Pacífico","Mejoramiento de la participación ciudadana en el modelo energético y de infraestructura energética, en el marco de la transición energética justa a nivel nacional"]
[null,"4. Capacidades de los gobiernos locales y las comunidades para la toma de decisiones de ordenamiento y planificación territorial.",null,"TRANSFORMACIÓN_1","CATALIZADOR1_4","N.A.","Grupo Gestión Administrativa",111,null,"POL-04 Gestión Presupuestal y Eficiencia del Gasto Público","Direccionamiento Estratégico",null,"Plan de Previsión de Recursos Humanos","Inversión - Asesoría para la planeación de abastecimiento y confiabilidad del sub sector de hidrocarburos a nivel Nacional","Secretaría General - GIT Talento Humano y Servicio al Ciudadano","Demanda y Prospectiva Energética",4,"Dirección General - ET","Formular e implementar la estrategia institucional de cooperación internacional de la UPME",7.4999999999999997E-2,"Oficina de Gestión de Proyectos de Fondos",180,4,"Dirección General - ET","• Estrategia formulada e implementada",null,"3.Definir e implementar herramientas de diálogo y apropiación social de conocimiento científico.",null,"4.Potenciar la relevancia de los instrumentos de planeación que genera la UPME, en los sectores y en el territorio.","4.Potenciar la relevancia de los instrumentos de planeación que genera la UPME, en los sectores y en el territorio. (Obj. 1 y 3)","Estrategia","Capacidad en operación comercial de generación eléctrica a partir de fuentes no convencionales de energía renovable (FNCER)","Mejoramiento de la planeación del abastecimiento y confiabilidad del subsector de hidrocarburos a nivel nacional"]
[null,"5. Consolidación del Catastro Multipropósito y tránsito hacia el Sistema de Administración del Territorio (SAT)",null,"TRANSFORMACIÓN_1","CATALIZADOR1_5","N.A.","Grupo Gestión Finanaciera",112,null,"POL-05 Compras y Contratación Pública","Direccionamiento Estratégico",null,"Plan Estratégico de Talento Humano","Inversión - sesoría para la equidad y conectividad energética a nivel Nacional","Secretaría General - GIT Gestión Financiera","Planeación Energética y Minera",5,"Dirección General - ET","Actualizar los sistemas de información para procesos ambientales y sociales",0.25,"Secretaría General",110,5,"Dirección General - ET","• Repositorio de información para visualización de información geográfica y no geográfica para persona y no técnica ",null,"4.Potenciar la relevancia de los instrumentos de planeación que genera la UPME, en los sectores y en el territorio.",null,"5.Fortalecer la gobernanza de la información, mediante la adopción de herramientas tecnológicas que faciliten la gestión adecuada de los datos e información para la planeación y la investigación.","5.Fortalecer la gobernanza de la información, mediante la adopción de herramientas tecnológicas que faciliten la gestión adecuada de los datos e información para la planeación y la investigación. (Obj. 1, 2 y 3)","Herramienta ","Capacidad instalada de fuentes no convencionales de energía y de soluciones tipo híbrido en las ZNI. (Indicador PAZ + Indicador PEDET)","Fortalecimiento de la planeación para el desarrollo minero responsable con los territorios en el marco de la transición energética a nivel nacional"]
[null,"6. Tenencia en las zonas rural, urbana y suburbana formalizada, adjudicada y regularizada.",null,"TRANSFORMACIÓN_1","CATALIZADOR1_6","N.A.","Grupo Gestión del Talento Humano",113,null,"POL-06 Fortalecimiento Organizacional y Simplificación de Procesos","Gestión con Valores para Resultados",null,"Plan Institucional de Capacitación","Inversión - Asesoría para promover el desarrollo sostenible y la competitividad del sector minero Nacional","Secretaría General - GIT Gestión Jurídica y Contractual","Fondos Energéticos y Proyectos para Cobertura",6,"Dirección General - ET","Actualizar los sistemas de información para procesos ambientales y sociales",0.1,"Subdirección de Demanda",160,6,"Dirección General - ET","• Geoportal UPME - módulo social y ambiental actualizado",null,"5.Fortalecer la gobernanza de la información, mediante la adopción de herramientas tecnológicas que faciliten la gestión adecuada de los datos e información para la planeación y la investigación.",null,"6. Fortalecer el gobierno abierto de la entidad que garantice la transparencia, participación, comunicación y colaboración de la UPME. ","6. Fortalecer el gobierno abierto de la entidad que garantice la transparencia, participación, comunicación y colaboración de la UPME. (Obj. 3)","Sistema de información - Software","Reglamentación de SUBSIDIOS DE ENERGÍA ELÉCTRICA","Fortalecimiento del levantamiento, gestión y apropiación de la información para la planeación del sector minero energético con enfoque territorial nacional"]
["2. Seguridad humana y justicia social","A. Hacia un Sistema de Protección Social con cobertura universal de riesgos. Cuidado como pilar del bienestar","1. Reforma del Sistema de Protección Social ","TRANSFORMACIÓN_2","CATALIZADOR2_A","ITEM_2_A_1","Grupo Gestion Jurídica y Contractual",114,null,"POL-07 Gobierno Digital","Gestión con Valores para Resultados",null,"Plan de Bienestar e Incentivos","Inversión - Fortalecimiento de la percepción de la ciudadanía frente a los productos y servicios prestados por la UPME","Subdirección de Energía Eléctrica - GIT Cobertura","Divulgación e Información Minero Energética",7,"Dirección General - ET","Formular el Plan Bioenergía regionalizado articuladamente con las Subdirecciones de la UPME  \n",0.1,"Subdirección de Energía Eléctrica",150,7,"Dirección General - ET","• Plan Bioenergía regionalizado formulado",null,"8.Implementar mecanismos de cooperación para intercambio y generación de conocimiento técnico científico a través de alianzas estratégicas con cooperantes nacionales e internacionales.",null,"7.Fortalecer y ampliar la capacidad institucional para proponer política minero energética disruptiva y trasformadora para la discusión nacional y los espacios de decisión de cara a la TEJ.","7.Fortalecer y ampliar la capacidad institucional para proponer política minero energética disruptiva y trasformadora para la discusión nacional y los espacios de decisión de cara a la TEJ. (Obj. 2 y 3)","Hadware","Implementación de criterios de sostenibilidad en el parque inmobiliario","Fortalecimiento de los servicios digitales aumentando la capacidad para la transformación digital e interacción con el ciudadano"]
[null,null,"2. Implementar un Sistema de Cuidado para la vida y la Paz","TRANSFORMACIÓN_2","CATALIZADOR2_A","ITEM_2_A_2","Oficina de Gestión de Información",130,null,"POL-08 Seguridad Digital","Gestión con Valores para Resultados",null,"Plan de Trabajo Anual en Seguridad y Salud en el Trabajo","Inversión - Fortalecimiento de los servicios digitales aumentando la capacidad para la transformación digital e interacción con el ciudadano","Subdirección de Energía Eléctrica - GIT Convocatorias Públicas","Gestión del Talento Humano",1,"Dirección General - GIT Planeación","Suministrar herramientas informáticas que faciliten la toma de decisiones eficaces en todos los niveles de la organización",0.5,"Subdirección de Hidrocarburos",170,1,"Dirección General - GIT Planeación","• Tablero de control de planeación y ejecución presupuestal \n• Tablero de control de indicadores\n• Tablero de control de Riesgos",null,null,null,"8.Implementar mecanismos de cooperación para intercambio y generación de conocimiento técnico científico a través de alianzas estratégicas con cooperantes nacionales e internacionales.","8.Implementar mecanismos de cooperación para intercambio y generación de conocimiento técnico científico a través de alianzas estratégicas con cooperantes nacionales e internacionales. (Obj. 1 y 3)","Tablero de control","Desarrollo técnico y relacionamiento territorial que habilite la Línea HVDC (Colectora II)","Fortalecimiento de la percepción de la ciudadanía frente a los productos y servicios prestados por la UPME nacional"]
[null,null,"3. Superación de Situación de Vulnerabilidad para la reparación efectiva e integral de la población víctima del conflicto","TRANSFORMACIÓN_2","CATALIZADOR2_A","ITEM_2_A_3","Grupo Arquitectura Empresarial",131,null,"POL-09 Defensa Jurídica","Gestión con Valores para Resultados",null,"Plan Anticorrupción y de Atención al Ciudadano","Inversión - Fortalecimiento del uso de la información territorial en las dinámicas de la planeación del sector minero energético","Subdirección de Energía Eléctrica - GIT Transmisión","Gestión Financiera",2,"Dirección General - GIT Planeación","Posicionar el Sistema de Gestión Institucional como una herramienta gerencial que aporte valor a la Entidad y partes interesadas",0.5,"Subdirección de Minería",140,2,"Dirección General - GIT Planeación","• Sistema de gestión implementado y evaluado",null,null,null,null,null,"Tablero de seguimiento","Reglamentación de SUBSIDIOS DE GAS","Fortalecimiento de la gestión de la información para la planeación del sector minero-energético a nivel nacional"]
[null,"B. Políticas de inclusión productiva con trabajo decente y apoyo al emprendimiento","1. Reconocimiento e impulso a la Economía Popular y Comunitaria (EPC)","TRANSFORMACIÓN_2","CATALIZADOR2_B","ITEM_2_B_1","Subdireccion de Mineria",140,null,"POL-10 Mejora Normativa","Gestión con Valores para Resultados",null,"Plan Estratégico de Tecnologías de la Información y las Comunicaciones PETI","Funcionamiento - Adquisición de Bienes y Servicios","Subdirección de Energía Eléctrica - GIT Generación y Registro","Gestión Jurídica",1,"Oficina de Gestión de la Información","Implementar la política de gobierno de datos para la UPME",0.1,null,null,1,"Oficina de Gestión de la Información","• Política de gobierno de datos implementada",null,null,null,null,null,"Política","Papel del Sector en los Sistemas de Información del territorio interoperables."]
[null,null,"2. Inserción, reinserción, reconversión laboral y transformación productiva","TRANSFORMACIÓN_2","CATALIZADOR2_B","ITEM_2_B_2","Subdirección de Energía Electrica",150,null,"POL-11 Servicio al ciudadano","Gestión con Valores para Resultados",null,"Plan de Tratamiento de Riesgos de Seguridad y Privacidad de la Información","Funcionamiento - Gastos de Comercialización","Subdirección de Demanda","Gestión Contractual",2,"Oficina de Gestión de la Información","Elaborar pilotos de análisis de información prescriptivo y predictivo con herramientas de analítica",0.1,null,null,2,"Oficina de Gestión de la Información","• Pilotos de implementación de análisis prescriptivo y predictivo con herramientas de analítica",null,null,null,null,null,"Herramient tecnológica"]
[null,null,"3. Sostenibilidad y crecimiento empresarial","TRANSFORMACIÓN_2","CATALIZADOR2_B","ITEM_2_B_3","Grupo de Generación",151,null,"POL-12 Racionalización de Trámites","Gestión con Valores para Resultados",null,"Plan de Seguridad y Privacidad de la Información",null,"Subdirección de Demanda - GIT Incentivos","Gestión TiCs",3,"Oficina de Gestión de la Información","Fortalecer a la UPME como CIO sectorial.\n",0.05,null,null,3,"Oficina de Gestión de la Información","• Documento con políticas, lineamientos y estándares para gobernabilidad del Dato. ",null,null,null,null,null,"Aplicación"]
[null,null,"4. Políticas de trabajo decente y promoción de los derechos de los trabajadores","TRANSFORMACIÓN_2","CATALIZADOR2_B","ITEM_2_B_4","Grupo de Transmisión Distribucion y Cobertura",152,null,"POL-13 Participación Ciudadana en la Gestión Pública","Gestión con Valores para Resultados",null,"Plan Cierre Brechas MIPG ",null,"Subdirección de Hidrocarburos","Gestión Documental",4,"Oficina de Gestión de la Información","Fortalecer a la UPME como CIO sectorial.\n",0.05,null,null,4,"Oficina de Gestión de la Información","• Diagnóstico de datos del sector ",null,null,null,null,null,"Convocataria"]
[null,"C. Garantía de derechos como fundamento de la dignidad humana y condiciones para el bienestar","1. Educación de calidad desde la primera infancia y a lo largo de la vida para reducir la desigualdad","TRANSFORMACIÓN_2","CATALIZADOR2_C","ITEM_2_C_1","Grupo de Convocatorias",153,null,"POL-14 Seguimiento y Evaluación del Desempeño Institucional","Gestión con Valores para Resultados",null,"Otro",null,"Subdirección de Minería","Servicio al Ciudadano PQR",5,"Oficina de Gestión de la Información","Fortalecer a la UPME como CIO sectorial.\n",0.05,null,null,5,"Oficina de Gestión de la Información","• Hoja de ruta del CIO sectorial ",null,null,null,null,null,"Resolución - Documento legal"]
[null,null,"2. Salud para la vida: hacia un sistema garantista, universal; basado en un modelo de salud, predictivo y preventivo","TRANSFORMACIÓN_2","CATALIZADOR2_C","ITEM_2_C_2","Subdirección de Demanda",160,null,"POL-15 Transparencia, Acceso a la Inf. y lucha contra la Corrupción","Gestión del Conocimiento y la Innovación",null,"No Aplica",null,"Oficina de Gestión de Proyectos de Fondos","Gestión de Servicios Administrativos",6,"Oficina de Gestión de la Información","Administrar integralmente la plataforma Intégrame",0.15,null,null,6,"Oficina de Gestión de la Información","• Administración y fortalecimiento de la plataforma intégrame desde la UPME.",null,null,null,null,null,"Programa"]
[null,null,"3. Bienestar mental, físico y social de los individuos","TRANSFORMACIÓN_2","CATALIZADOR2_C","ITEM_2_C_3","Grupo de Incentivos y Certificaciones",161,null,"POL-16 Gestión Documental","Evaluación de Resultados",null,null,null,"Oficina de Gestión de la Información","Evaluación y Control",7,"Oficina de Gestión de la Información","Fortalecer los 5 dominios de Arquitectura empresarial como gestión de proyectos TI",0.1,null,null,7,"Oficina de Gestión de la Información","• PETI, MSPI y Plan de Tratamiento de riesgos implementados"]
[null,null,"4. Acceso equitativo a medicamentos y tecnologías en el sector salud","TRANSFORMACIÓN_2","CATALIZADOR2_C","ITEM_2_C_4","Subdirección de Hidrocarburos",170,null,"POL-17 Gestión Información Estadística","Información y Comunicación",null,null,null,"Todas","Mejora Continua",8,"Oficina de Gestión de la Información","Fortalecer la infraestructura tecnológica",3.3000000000000002E-2,null,null,8,"Oficina de Gestión de la Información","• Backup en nube"]
[null,null,"5. Infraestructura como medio para la atención de las necesidades colectivas","TRANSFORMACIÓN_2","CATALIZADOR2_C","ITEM_2_C_5","Oficina de Gestión de Proyectos de Fondos",180,null,"POL-18 Gestión del Conocimiento","Información y Comunicación",null,null,null,"N/A",null,9,"Oficina de Gestión de la Información","Fortalecer la infraestructura tecnológica",3.3000000000000002E-2,null,null,9,"Oficina de Gestión de la Información","• DRP de Infraestructura en nube "]
[null,null,"6. Mínimo vital de agua","TRANSFORMACIÓN_2","CATALIZADOR2_C","ITEM_2_C_6",null,null,null,"POL-19 Control Interno","Control Interno",null,null,null,null,null,10,"Oficina de Gestión de la Información","Fortalecer la infraestructura tecnológica",3.4000000000000002E-2,null,null,10,"Oficina de Gestión de la Información","• Hiperconvergencia ampliada"]
[null,null,"7. Garantía del disfrute y ejercicio de los derechos culturales como corazón de la vida y la paz","TRANSFORMACIÓN_2","CATALIZADOR2_C","ITEM_2_C_7",null,null,null,"No Aplica","N.A.",null,null,null,null,null,11,"Oficina de Gestión de la Información","Fortalecer el canal de seguridad con el SOC completo para la infraestructura de la UPME",0.1,null,null,11,"Oficina de Gestión de la Información","• SOC (Centro de Operaciones de Seguridad) implementado "]
[null,null,"8. Democratización del conocimiento: aprovechamiento de la propiedad intelectual (PI) y reconocimiento de los saberes tradicionales ","TRANSFORMACIÓN_2","CATALIZADOR2_C","ITEM_2_C_8",null,null,null,null,null,null,null,null,null,null,12,"Oficina de Gestión de la Información","Diseñar e implementar la estrategia de comunicaciones con enfoque interseccional, en el marco de la TEJ. ",0.1,null,null,12,"Oficina de Gestión de la Información","• Estrategia de comunicaciones diseñada e implementada. "]
[null,null,"9. Derecho al deporte, la recreación y la actividad física para la convivencia y la paz","TRANSFORMACIÓN_2","CATALIZADOR2_C","ITEM_2_C_9",null,null,null,null,null,null,null,null,null,null,13,"Oficina de Gestión de la Información","Establecer métricas que evidencien el posicionamiento de la UPME",0.1,null,null,13,"Oficina de Gestión de la Información","• Documento con resultados de las métricas "]
[null,null,"10. Democratización de las TIC para desarrollar una sociedad del conocimiento y la tecnología, conectada con el saber y los circuitos globales","TRANSFORMACIÓN_2","CATALIZADOR2_C","ITEM_2_C_10",null,null,null,null,null,null,null,null,null,null,1,"Oficina de Gestión de Proyectos de Fondos","Mejorar el proceso de evaluación de los  proyectos del sector minero energético que requieren concepto para ser financiados con recursos de fondos y mecanismos de financiación",0.4,null,null,1,"Oficina de Gestión de Proyectos de Fondos","• Metodología de evaluación de proyectos propuesta"]
[null,null,"11. Datos al servicio del bienestar social y el bien común","TRANSFORMACIÓN_2","CATALIZADOR2_C","ITEM_2_C_11",null,null,null,null,null,null,null,null,null,null,2,"Oficina de Gestión de Proyectos de Fondos","Mejorar la capacidad de los interesados en formular proyectos de inversión en el sector energético.",0.2,null,null,2,"Oficina de Gestión de Proyectos de Fondos","• Asistencias Técnicas (capacitaciones, talleres y/o mesas técnicas)"]
[null,null,"12. Sistemas de transporte público urbanos y regionales para aprovechar las aglomeraciones urbanas","TRANSFORMACIÓN_2","CATALIZADOR2_C","ITEM_2_C_12",null,null,null,null,null,null,null,null,null,null,3,"Oficina de Gestión de Proyectos de Fondos","Elaborar la planeación energética regional para la toma de decisiones.",0.2,null,null,3,"Oficina de Gestión de Proyectos de Fondos","• Documento PERS (Plan de Energización Rural Sostenible) y/o documento de estrategias"]
[null,null,"13. Consolidación de la red de infraestructura y de transporte seguro, al servicio de la población","TRANSFORMACIÓN_2","CATALIZADOR2_C","ITEM_2_C_13",null,null,null,null,null,null,null,null,null,null,4,"Oficina de Gestión de Proyectos de Fondos","Elaborar la planeación energética regional para la toma de decisiones.",0.2,null,null,4,"Oficina de Gestión de Proyectos de Fondos","• Estrategia para la energización rural sostenible"]
[null,null,"14. Protección de población migrante y fortalecimiento de vínculos con la colombianidad en el exterior","TRANSFORMACIÓN_2","CATALIZADOR2_C","ITEM_2_C_14",null,null,null,null,null,null,null,null,null,null,1,"Secretaría General","Realizar el rediseño institucional de la entidad",0.3,null,null,1,"Secretaría General","• Estudio técnico\n• Decretos de estructura y planta de personal"]
[null,"D. Protección de la vida y control institucional de los territorios para la construcción de una sociedad segura y sin violencias","1. Política de drogas orientada a la regulación para la garantía de derechos y libertades","TRANSFORMACIÓN_2","CATALIZADOR2_D","ITEM_2_D_1",null,null,null,null,null,null,null,null,null,null,2,"Secretaría General","Implementar el proceso de formalización del empleo a través de la creación de empleos temporales \n\n",0.15,null,null,2,"Secretaría General","• Estudio técnico\n• Decreto de creación de empleos temporales "]
[null,null,"2. Desmantelamiento del multicrimen, prevaleciendo la protección integral de las poblaciones","TRANSFORMACIÓN_2","CATALIZADOR2_D","ITEM_2_D_2",null,null,null,null,null,null,null,null,null,null,3,"Secretaría General","Implementar el proceso de formalización del empleo a través de la creación de empleos temporales \n\n",0.15,null,null,3,"Secretaría General","• Proceso de vinculación del personal desarrollado"]
[null,null,"3. Tránsito hacia un nuevo modelo de convivencia y seguridad ciudadana corresponsable, participativo y garante de la vida","TRANSFORMACIÓN_2","CATALIZADOR2_D","ITEM_2_D_3",null,null,null,null,null,null,null,null,null,null,4,"Secretaría General","Transformar a la UPME en línea con los retos y exigencias de la planeación de la transición energética justa y la apuesta mundial en esta materia.  \n\n",0.4,null,null,4,"Secretaría General","• Estudio técnico\n• Decretos de estructura y planta de personal"]
[null,null,"4. Defensa integral del territorio para la protección de la soberanía, independencia, integridad territorial y del orden constitucional","TRANSFORMACIÓN_2","CATALIZADOR2_D","ITEM_2_D_4",null,null,null,null,null,null,null,null,null,null,1,"Subdirección de Demanda","Promover la eficiencia energética en la industria - actualización tecnológica, BPO y análisis B/C.",0.05,null,null,1,"Subdirección de Demanda","• Fortalecimiento y ampliación de los Centros del PEVI. Dos (2) nuevos centros.\n"]
[null,null,"5. Transformaciones para la transparencia, legitimidad e integridad del Sector Defensa","TRANSFORMACIÓN_2","CATALIZADOR2_D","ITEM_2_D_5",null,null,null,null,null,null,null,null,null,null,2,"Subdirección de Demanda","Promover la eficiencia energética en la industria - actualización tecnológica, BPO y análisis B/C.",0.05,null,null,2,"Subdirección de Demanda","• Programa de desarrollo de infraestructura energética"]
[null,"E. Justicia para el cambio social, democrartización del estado y garantía de derechos y libertades","1. Servicio de justicia a partir de las necesidades de las personas, comunidades y territorios","TRANSFORMACIÓN_2","CATALIZADOR2_E","ITEM_2_E_1",null,null,null,null,null,null,null,null,null,null,3,"Subdirección de Demanda","Elaborar el Plan Energético Nacional cada dos años",0.2,null,null,3,"Subdirección de Demanda","• Plan energético Nación 2022 -2052\n• Plan energético Nación 2024 -2054\n• Plan energético Nación 2026 -2056"]
[null,null,"2. Sistema de justicia moderno sustentado en procesos de transformación digital","TRANSFORMACIÓN_2","CATALIZADOR2_E","ITEM_2_E_2",null,null,null,null,null,null,null,null,null,null,4,"Subdirección de Demanda","Elaborar el Plan Nacional de Bioenergía con enfoque de industrialización y de generación de energía\n",0.2,null,null,4,"Subdirección de Demanda","• Plan Nacional de Bioenergía con enfoque de industrialización y de generación de energía"]
[null,null,"3. Política criminal y penitenciaria garante de la dignidad humana","TRANSFORMACIÓN_2","CATALIZADOR2_E","ITEM_2_E_3",null,null,null,null,null,null,null,null,null,null,5,"Subdirección de Demanda","Actualizar del PAI PROURE para que comprenda y amplie la apuestas de transformación de la TEJ",0.2,null,null,5,"Subdirección de Demanda","• Documento de PAI-PROURE actualizado"]
[null,null,"4. Justicia transicional e implementación de las sanciones y medidas de reparación para la reconciliación social\n","TRANSFORMACIÓN_2","CATALIZADOR2_E","ITEM_2_E_4",null,null,null,null,null,null,null,null,null,null,6,"Subdirección de Demanda","\nElaborar la Hoja de Ruta de etiquetado nacional\n",0.2,null,null,6,"Subdirección de Demanda","• Hoja de Ruta de etiquetado nacional"]
["3. Derecho humano a la alimentación","1. Transformación del sector agropecuario para producir más y mejores alimentos",null,"TRANSFORMACIÓN_3","CATALIZADOR3_1","N.A.",null,null,null,null,null,null,null,null,null,null,7,"Subdirección de Demanda","Estudiar la viabilidad de la energía nuclear en Colombia\n",0.1,null,null,7,"Subdirección de Demanda","• Estudio de viabilidad de la energía nuclear en Colombia"]
[null,"2. Cadenas de suministro eficientes, digitales y tecnificadas para potenciar el campo colombiano",null,"TRANSFORMACIÓN_3","CATALIZADOR3_2","N.A.",null,null,null,null,null,null,null,null,null,null,1,"Subdirección de Energía Eléctrica","Dinamizar las señales de expansión Generación, Trasmisión y Cobertura",0.25,null,null,1,"Subdirección de Energía Eléctrica","• Tres planes por año: generación, transmisión y cobertura"]
[null,"3. Red de infraestructura para garantizar el transporte eficiente a lo largo de la cadena logística agropecuaria. ",null,"TRANSFORMACIÓN_3","CATALIZADOR3_3","N.A.",null,null,null,null,null,null,null,null,null,null,2,"Subdirección de Energía Eléctrica","Ajustar la metodología de evaluación de conexiones",0.25,null,null,2,"Subdirección de Energía Eléctrica","• Metodología de evaluación de conexiones\n"]
[null,"4. Hacia menos intermediación y mayor rentabilidad en la comercialización de la producción agropecuaria.",null,"TRANSFORMACIÓN_3","CATALIZADOR3_4","N.A.",null,null,null,null,null,null,null,null,null,null,3,"Subdirección de Energía Eléctrica","Mejorar la planeación de la cobertura\n",0.25,null,null,3,"Subdirección de Energía Eléctrica","• Nueva metodología con mejores fuentes de información"]
[null,"5. Alimentos sanos y seguros para alimentar a Colombia, y que cumplan estándares en materia de sanidad e inocuidad en la cadena alimentaria. ",null,"TRANSFORMACIÓN_3","CATALIZADOR3_5","N.A.",null,null,null,null,null,null,null,null,null,null,4,"Subdirección de Energía Eléctrica","Incorporar el enfoque territorial a la expansión de la transmisión\npara el fortalecimiento del Sistema Eléctrico en el marco de la TEJ",0.25,null,null,4,"Subdirección de Energía Eléctrica","• Metodología y aplicación"]
[null,"6. Lucha frontal contra el hambre: consumo de alimentos adecuados y adaptados a las necesidades de los colombianos. \n",null,"TRANSFORMACIÓN_3","CATALIZADOR3_6","N.A.",null,null,null,null,null,null,null,null,null,null,1,"Subdirección de Hidrocarburos","Elaborar y actualizar anualmente el Plan de abastecimiento de gas natural (PAGN)",0.15,null,null,1,"Subdirección de Hidrocarburos","• Plan de abastecimiento de gas natural - PAGN \n"]
[null,"7. Gobernanza multinivel políticas públicas asociadas al Derecho Humano a la Alimentación Adecuada (DHAA).",null,"TRANSFORMACIÓN_3","CATALIZADOR3_7","N.A.",null,null,null,null,null,null,null,null,null,null,2,"Subdirección de Hidrocarburos","Elaborar y actualizar el Plan indicativo de abastecimiento de combustibles líquidos (PIACL)",0.15,null,null,2,"Subdirección de Hidrocarburos","• Plan indicativo de abastecimiento de combustibles líquidos - PIACL"]
["4. Internacionalización, transformación productiva para la vida y acción climática","A. Naturaleza viva: regeneración con inclusión social","1. Programa de conservación de la naturaleza y su restauración","TRANSFORMACIÓN_4","CATALIZADOR4_A","ITEM_4_A_1",null,null,null,null,null,null,null,null,null,null,3,"Subdirección de Hidrocarburos","Elaborar y actualizar el PIAGLP- Plan indicativo de abastecimiento de GLP",0.15,null,null,3,"Subdirección de Hidrocarburos","• Plan indicativo de abastecimiento de GLP"]
[null,"B. Transición energética justa, segura, confiable y eficiente para alcanzar carbono neutralidad y consolidar territorios resilientes al clima","1. Avanzar en la meta de carbono neutralidad de la economía y en una sociedad resiliente al clima","TRANSFORMACIÓN_4","CATALIZADOR4_B","ITEM_4_B_1",null,null,null,null,null,null,null,null,null,null,4,"Subdirección de Hidrocarburos","Formalizar la mesa intersectorial del Plan Nacional de Sustitución de Leña - PNSL. ",0.15,null,null,4,"Subdirección de Hidrocarburos","• Documento formal con la estructura de la mesa intersectorial"]
[null,null,"2. Acelerar una transición energética justa, basada en el respeto a la naturaleza, la justicia social y la soberanía con seguridad, confiabilidad y eficiencia","TRANSFORMACIÓN_4","CATALIZADOR4_B","ITEM_4_B_2",null,null,null,null,null,null,null,null,null,null,5,"Subdirección de Hidrocarburos","Revisar y actualizar procesos de la subdirección.",0.05,null,null,5,"Subdirección de Hidrocarburos","• Documentos por cada proceso."]
[null,null,"3. Desarrollo económico a partir de eficiencia energética, nuevos energéticos y minerales estratégicos para la transición","TRANSFORMACIÓN_4","CATALIZADOR4_B","ITEM_4_B_3",null,null,null,null,null,null,null,null,null,null,6,"Subdirección de Hidrocarburos","Estructurar  las convocatorias de Gas Natural y Combustibles Líquidos",0.1,null,null,6,"Subdirección de Hidrocarburos","• Documento de Selección del Inversionista.\n"]
[null,null,"4. Ascenso tecnológico del sector transporte y promoción de la movilidad activa","TRANSFORMACIÓN_4","CATALIZADOR4_B","ITEM_4_B_4",null,null,null,null,null,null,null,null,null,null,7,"Subdirección de Hidrocarburos","Realizar convocatorias de Gas Natural y Combustibles Líquidos",0.1,null,null,7,"Subdirección de Hidrocarburos","• Apertura de convocatorias."]
[null,null,"5. Construir ciudades y hábitats resilientes","TRANSFORMACIÓN_4","CATALIZADOR4_B","ITEM_4_B_5",null,null,null,null,null,null,null,null,null,null,8,"Subdirección de Hidrocarburos","Articular los planes de abastecimiento y confiabilidad de la subdirección (PIACL, PAGN, GLP y PNSL)",0.15,null,null,8,"Subdirección de Hidrocarburos","• Plan de abastecimiento y confiabilidad de Hidrocarburos"]
[null,"C. Economía productiva a través de la reindustrialización y la bioeconomía","1. Reindustrialización: hacia una economía del conocimiento, incluyente y sostenible","TRANSFORMACIÓN_4","CATALIZADOR4_C","ITEM_4_C_1",null,null,null,null,null,null,null,null,null,null,1,"Subdirección de Minería","Formular instrumentos de planeación con base en la soberanía del  recurso minero que aporten a la transición energética, la reindustrialización, el desarrollo agrícola y la infraestructura.",0.1,null,null,1,"Subdirección de Minería","• Plan Nacional de Desarrollo Minero"]
[null,null,"2. Reindustrialización en actividades conducentes a la sociedad del conocimiento ","TRANSFORMACIÓN_4","CATALIZADOR4_C","ITEM_4_C_2",null,null,null,null,null,null,null,null,null,null,2,"Subdirección de Minería","Formular instrumentos de planeación con base en la soberanía del  recurso minero que aporten a la transición energética, la reindustrialización, el desarrollo agrícola y la infraestructura.",0.1,null,null,2,"Subdirección de Minería","• Plan Subsectorial - Línea TEJ"]
[null,null,"3. Consolidar los modelos de bioeconomía y turismo incluyentes, basada en el conocimiento y la innovación\n","TRANSFORMACIÓN_4","CATALIZADOR4_C","ITEM_4_C_3",null,null,null,null,null,null,null,null,null,null,3,"Subdirección de Minería","Formular instrumentos de planeación con base en la soberanía del  recurso minero que aporten a la transición energética, la reindustrialización, el desarrollo agrícola y la infraestructura.",0.2,null,null,3,"Subdirección de Minería","• Plan Subsectorial - Línea Seguridad Alimentaria"]
[null,"D. Financiamiento del desarrollo como mecanismo habilitante para una economía productiva ","1. Financiamiento para un nuevo contrato social, ambiental y económico","TRANSFORMACIÓN_4","CATALIZADOR4_D","ITEM_4_D_1",null,null,null,null,null,null,null,null,null,null,4,"Subdirección de Minería","Formular instrumentos de planeación con base en la soberanía del  recurso minero que aporten a la transición energética, la reindustrialización, el desarrollo agrícola y la infraestructura.",0.2,null,null,4,"Subdirección de Minería","• Plan Subsectorial - Línea infraestructura y hábitat"]
["5. Convergencia regional","1. Aprovechamiento de la ciudad construida, participativo e incluyente, para el fortalecimiento de los vínculos intraurbanos",null,"TRANSFORMACIÓN_5","CATALIZADOR5_1","N.A.",null,null,null,null,null,null,null,null,"Subdirección de Energía Eléctrica - GIT Generación y Registro","Gestión Contractual",5,"Subdirección de Minería","Reestructurar  el SIMCO con el propósito de servir como herramienta  interinstitucional para la divulgación de la información, creación de iniciativas y la toma de decisiones a nivel sectorial.",0.1,null,null,5,"Subdirección de Minería","• Información actualizada en el SIMCO"]
[null,"2. Construcción e implementación de modelos de desarrollo supramunicipales para el fortalecimiento de vínculos urbanorurales y la integración de territorios",null,"TRANSFORMACIÓN_5","CATALIZADOR5_2","N.A.",null,null,null,null,null,null,"11. Plan de Tratamiento de Riesgos de Seguridad y Privacidad de la Información",null,"Subdirección de Demanda","Gestión TiCs",6,"Subdirección de Minería","Reestructurar  el SIMCO con el propósito de servir como herramienta  interinstitucional para la divulgación de la información, creación de iniciativas y la toma de decisiones a nivel sectorial.",0.15,null,null,6,"Subdirección de Minería","• Procedimiento para actualizar la información en SIMCO"]
[null,"3. Territorios más humanos: política de hábitat integral",null,"TRANSFORMACIÓN_5","CATALIZADOR5_3","N.A.",null,null,null,null,null,null,"12. Plan de Seguridad y Privacidad de la Información",null,"Subdirección de Demanda - GIT Incentivos","Gestión Documental",7,"Subdirección de Minería","Reestructurar  el SIMCO con el propósito de servir como herramienta  interinstitucional para la divulgación de la información, creación de iniciativas y la toma de decisiones a nivel sectorial.",0.15,null,null,7,"Subdirección de Minería","• SIMCO versión 3.0"]
[null,"4. Reestructuración y desarrollo de sistemas nacionales y regionales de productividad, competitividad e innovación",null,"TRANSFORMACIÓN_5","CATALIZADOR5_4","N.A.",null,null,null,null,null,null,"N.A.",null,"Subdirección de Hidrocarburos","Servicio al Ciudadano PQR"]
[null,"5. Fortalecimiento institucional como motor de cambio para recuperar la confianza de la ciudadanía y para el fortalecimiento del vínculo Estado-Ciudadanía",null,"TRANSFORMACIÓN_5","CATALIZADOR5_5","N.A.",null,null,null,null,null,null,null,null,"Subdirección de Minería","Gestión de Servicios Administrativos"]
[null,"6. Dispositivos democráticos de participación: decisiones desde y para el territorio",null,"TRANSFORMACIÓN_5","CATALIZADOR5_6","N.A.",null,null,null,null,null,null,null,null,"Oficina de Gestión de Proyectos de Fondos","Evaluación y Control","ITEM","TABLA DE VERIFICCIÓN",null,null,null,null,"ITEM","TABLA DE VERIFICCIÓN"]
[null,"7. Consolidación del diálogo, la memoria, y la reconciliación como políticas de estado y reivindicación de los derechos de los grupos más afectados, para reconstruir el tejido social",null,"TRANSFORMACIÓN_5","CATALIZADOR5_7","N.A.",null,null,null,null,null,null,null,null,"Oficina de Gestión de la Información","Mejora Continua",{"$f":"+'Propuesta (2)'!E7","v":0},{"$f":"IF($Q$61=$R$2,S2,IF($Q$61=$R$9,S9,IF($Q$61=$R$11,S11,IF($Q$61=$R$24,S24,IF($Q$61=$R$28,S28,IF($Q$61=$R$32,S32,IF($Q$61=$R$39,S39,IF($Q$61=$R$43,S43,IF($Q$61=$R$51,S51,\"\")))))))))","v":""},null,null,null,null,{"$f":"'Propuesta (2)'!E7","v":0},{"$f":"IF($Q$61=$R$2,Y2,IF($Q$61=$R$9,Y9,IF($Q$61=$R$11,Y11,IF($Q$61=$R$24,Y24,IF($Q$61=$R$28,Y28,IF($Q$61=$R$32,Y32,IF($Q$61=$R$39,Y39,IF($Q$61=$R$43,Y43,IF($Q$61=$R$51,Y51,\"\")))))))))","v":""}]
[null,null,null,null,null,null,null,null,null,null,null,null,null,null,null,null,2,{"$f":"IF($Q$61=$R$2,S3,IF($Q$61=$R$9,S10,IF($Q$61=$R$11,S12,IF($Q$61=$R$24,S25,IF($Q$61=$R$28,S29,IF($Q$61=$R$32,S33,IF($Q$61=$R$39,S40,IF($Q$61=$R$43,S44,IF($Q$61=$R$51,S52,\"\")))))))))","v":""},null,null,null,null,2,{"$f":"IF($Q$61=$R$2,Y3,IF($Q$61=$R$9,Y10,IF($Q$61=$R$11,Y12,IF($Q$61=$R$24,Y25,IF($Q$61=$R$28,Y29,IF($Q$61=$R$32,Y33,IF($Q$61=$R$39,Y40,IF($Q$61=$R$43,Y44,IF($Q$61=$R$51,Y52,\"\")))))))))","v":""}]
["TRANSFORMACIONES",null,null,null,null,null,null,null,null,null,null,null,null,null,null,null,3,{"$f":"IF($Q$61=$R$2,S4,IF($Q$61=$R$11,S13,IF($Q$61=$R$24,S26,IF($Q$61=$R$28,S30,IF($Q$61=$R$32,S34,IF($Q$61=$R$39,S41,IF($Q$61=$R$43,S45,IF($Q$61=$R$51,S53,\"\"))))))))","v":""},null,null,null,null,3,{"$f":"IF($Q$61=$R$2,Y4,IF($Q$61=$R$11,Y13,IF($Q$61=$R$24,Y26,IF($Q$61=$R$28,Y30,IF($Q$61=$R$32,Y34,IF($Q$61=$R$39,Y41,IF($Q$61=$R$43,Y45,IF($Q$61=$R$51,Y53,\"\"))))))))","v":""}]
["1. Ordenamiento del territorio alrededor del agua y justicia ambiental",null,null,null,null,null,null,null,null,null,null,null,null,null,null,null,4,{"$f":"IF($Q$61=$R$2,S5,IF($Q$61=$R$11,S14,IF($Q$61=$R$24,S27,IF($Q$61=$R$28,S31,IF($Q$61=$R$32,S35,IF($Q$61=$R$39,S42,IF($Q$61=$R$43,S46,IF($Q$61=$R$51,S54,\"\"))))))))","v":""},null,null,null,null,4,{"$f":"IF($Q$61=$R$2,Y5,IF($Q$61=$R$11,Y14,IF($Q$61=$R$24,Y27,IF($Q$61=$R$28,Y31,IF($Q$61=$R$32,Y35,IF($Q$61=$R$39,Y42,IF($Q$61=$R$43,Y46,IF($Q$61=$R$51,Y54,\"\"))))))))","v":""}]
["2. Seguridad humana y justicia social",null,null,null,null,null,null,null,null,null,null,null,null,null,"N/A",null,5,{"$f":"IF($Q$61=$R$2,S6,IF($Q$61=$R$11,S15,IF($Q$61=$R$32,S36,IF($Q$61=$R$43,S47,IF($Q$61=$R$51,S55,\"\")))))","v":""},null,null,null,null,5,{"$f":"IF($Q$61=$R$2,Y6,IF($Q$61=$R$11,Y15,IF($Q$61=$R$32,Y36,IF($Q$61=$R$43,Y47,IF($Q$61=$R$51,Y55,\"\")))))","v":""}]
["3. Derecho humano a la alimentación",null,null,null,null,null,null,null,null,null,null,null,null,null,null,null,6,{"$f":"IF($Q$61=$R$2,S7,IF($Q$61=$R$11,S16,IF($Q$61=$R$32,S37,IF($Q$61=$R$43,S48,IF($Q$61=$R$51,S56,\"\")))))","v":""},null,null,null,null,6,{"$f":"IF($Q$61=$R$2,Y7,IF($Q$61=$R$11,Y16,IF($Q$61=$R$32,Y37,IF($Q$61=$R$43,Y48,IF($Q$61=$R$51,Y56,\"\")))))","v":""}]
["4. Internacionalización, transformación productiva para la vida y acción climática",null,null,null,null,null,null,null,null,null,null,null,null,null,null,null,7,{"$f":"IF($Q$61=$R$2,S8,IF($Q$61=$R$11,S17,IF($Q$61=$R$32,S38,IF($Q$61=$R$43,S49,IF($Q$61=$R$51,S57,\"\")))))","v":""},null,null,null,null,7,{"$f":"IF($Q$61=$R$2,Y8,IF($Q$61=$R$11,Y17,IF($Q$61=$R$32,Y38,IF($Q$61=$R$43,Y49,IF($Q$61=$R$51,Y57,\"\")))))","v":""}]
["5. Convergencia regional",null,null,null,null,null,null,null,null,null,null,null,null,null,null,null,8,{"$f":"IF($Q$61=$R$11,S18,IF($Q$61=$R$43,S50,\"\"))","v":""},null,null,null,null,8,{"$f":"IF($Q$61=$R$11,Y18,IF($Q$61=$R$43,Y50,\"\"))","v":""}]
[null,null,null,null,null,null,null,null,null,null,null,null,null,null,null,null,9,{"$f":"IF($Q$61=$R$11,S19,\"\")","v":""},null,null,null,null,9,{"$f":"IF($Q$61=$R$11,Y19,\"\")","v":""}]
["TRANSFORMACIÓN_1","TRANSFORMACIÓN_2","TRANSFORMACIÓN_3","TRANSFORMACIÓN_4","TRANSFORMACIÓN_5",null,null,null,null,null,null,null,null,null,null,null,10,{"$f":"IF($Q$61=$R$11,S20,\"\")","v":""},null,null,null,null,10,{"$f":"IF($Q$61=$R$11,Y20,\"\")","v":""}]
["1. Justicia ambiental y gobernanza inclusiva","A. Hacia un Sistema de Protección Social con cobertura universal de riesgos. Cuidado como pilar del bienestar","1. Transformación del sector agropecuario para producir más y mejores alimentos","1. De una economía extractivista a una sostenible y productiva: Política de Reindustrialización, hacia una economía del conocimiento, incluyente y sostenible.","1. Aprovechamiento de la ciudad construida, participativo e incluyente, para el fortalecimiento de los vínculos intraurbanos",null,null,null,null,null,null,null,null,null,null,null,11,{"$f":"IF($Q$61=$R$11,S21,\"\")","v":""},null,null,null,null,11,{"$f":"IF($Q$61=$R$11,Y21,\"\")","v":""}]
["2. El agua y las personas como determinantes del ordenamiento territorial. ","B. Políticas de inclusión productiva con trabajo decente y apoyo al emprendimiento","2. Cadenas de suministro eficientes, digitales y tecnificadas para potenciar el campo colombiano","2. Desarrollo económico a partir de eficiencia energética, nuevos energéticos y minerales estratégicos para la transición.","2. Construcción e implementación de modelos de desarrollo supramunicipales para el fortalecimiento de vínculos urbanorurales y la integración de territorios",null,null,null,null,null,null,null,null,null,null,null,12,{"$f":"IF($Q$61=$R$11,S22,\"\")","v":""},null,null,null,null,12,{"$f":"IF($Q$61=$R$11,Y22,\"\")","v":""}]
["3. Coordinación de los instrumentos de planificación de territorios vitales","C. Garantía de derechos como fundamento de la dignidad humana y condiciones para el bienestar","3. Red de infraestructura para garantizar el transporte eficiente a lo largo de la cadena logística agropecuaria. ","3. Ascenso tecnológico del sector transporte y promoción de la movilidad activa","3. Territorios más humanos: política de hábitat integral",null,null,null,null,null,null,null,null,null,null,null,13,{"$f":"IF($Q$61=$R$11,S23,\"\")","v":""},null,null,null,null,13,{"$f":"IF($Q$61=$R$11,Y23,\"\")","v":""}]
["4. Capacidades de los gobiernos locales y las comunidades para la toma de decisiones de ordenamiento y planificación territorial.","D. Protección de la vida y control institucional de los territorios para la construcción de una sociedad segura y sin violencias","4. Hacia menos intermediación y mayor rentabilidad en la comercialización de la producción agropecuaria.","4. Ciudades y hábitats resilientes","4. Reestructuración y desarrollo de sistemas nacionales y regionales de productividad, competitividad e innovación"]
["5. Consolidación del Catastro Multipropósito y tránsito hacia el Sistema de Administración del Territorio (SAT)","E. Justicia para el cambio social, democrartización del estado y garantía de derechos y libertades","5. Alimentos sanos y seguros para alimentar a Colombia, y que cumplan estándares en materia de sanidad e inocuidad en la cadena alimentaria. ",null,"5. Fortalecimiento institucional como motor de cambio para recuperar la confianza de la ciudadanía y para el fortalecimiento del vínculo Estado-Ciudadanía"]
["6. Tenencia en las zonas rural, urbana y suburbana formalizada, adjudicada y regularizada.",null,"6. Lucha frontal contra el hambre: consumo de alimentos adecuados y adaptados a las necesidades de los colombianos. \n",null,"6. Dispositivos democráticos de participación: decisiones desde y para el territorio"]
[null,null,"7. Gobernanza multinivel políticas públicas asociadas al Derecho Humano a la Alimentación Adecuada (DHAA).",null,"7. Consolidación del diálogo, la memoria, y la reconciliación como políticas de estado y reivindicación de los derechos de los grupos más afectados, para reconstruir el tejido social"]

{"sheet":"Propuesta","index":1,"n_rows":63,"n_cols":42,"rows_kept":63,"cut":false,"hidden":true,"merged":[[8,26,8,41],[9,26,9,29],[9,30,9,33],[9,34,9,37],[9,38,9,41],[1,1,4,1],[1,2,4,24],[1,25,2,25],[3,25,4,25],[8,1,9,3],[8,22,10,22],[8,23,9,24],[8,8,9,11],[6,4,6,7],[8,18,9,21],[8,25,9,25],[8,12,9,17],[8,5,9,7],[10,6,10,7]]}
[]
[null,null,"FORMATO FORMULACIÓN Y REPORTE DE AVANCES DEL PLAN DE ACCIÓN\nUNIDAD DE PLANEACIÓN MINERO ENERGÉTICA - UPME",null,null,null,null,null,null,null,null,null,null,null,null,null,null,null,null,null,null,null,null,null,null,"Código: F-DE-09"]
[]
[null,null,null,null,null,null,null,null,null,null,null,null,null,null,null,null,null,null,null,null,null,null,null,null,null,"Versión No. 01"]
[]
[]
[null,null,null,"DEPENDENCIA FORMULADORA ","Subdirección de Hidrocarburos",null,null,null,null,null,null,"CÓDIGO DE DEPENDENCIA",null,{"$f":"IFERROR(VLOOKUP(E7,Listas!U1:V10,2,0),\" \")","v":170}]
[]
[null,"ARTICULACIÓN CON BASES PND 2022 - 2026",null,null,null,"1. ASOCIACIÓN CON LAS POLÍTICAS MIPG",null,null,"2. ASOCIACIÓN CON LA PLANEACIÓN ESTRATÉGICA INSTITUCIONAL",null,null,null,"3. FORMULACIÓN DE PLAN DE ACCIÓN",null,null,null,null,null,"PROGRAMACIÓN DE LA EJECUCIÓN DE LA ACTIVIDAD",null,null,null,"VALIDACIÓN DE LA PROGRAMACIÓN","4. FINANCIACIÓN",null,"5. ASOCIACIÓN CON OTROS PLANES","4. REPORTE DE AVANCES"]
[null,null,null,null,null,null,null,null,null,null,null,null,null,null,null,null,null,null,null,null,null,null,null,null,null,null,"REPORTE DE AVANCES AL TRIMESTRE I",null,null,null,"REPORTE DE AVANCES AL TRIMESTRE II",null,null,null,"REPORTE DE AVANCES AL TRIMESTRE III",null,null,null,"REPORTE DE AVANCES AL TRIMESTRE IV"]
[null,"TRANSFORMACIÓN","CATALIZADOR","COMPROMISO PLAN ESTRATÉGICO SECTORIAL","1ª POLÍTICA MIPG ","2ª POLÍTICA MIPG","APLICA ACTIVIDADES PARA CIERRE DE BRECHAS RESULTADOS MIPG 2022",null,"OBJETIVO ESTRATÉGICO INSTITUCIONAL","OBJETIVO","ESTRATEGIA","COMPROMISO","ID DEL ENTREGABLE","ENTREGABLE","META","UNIDAD DE MEDIDA O CARÁCTERÍSTICA","PONDERACIÓN DEL ENTREGABLE","ACTIVIDADES CLAVE PARA MATERIALIZAR DEL PRODUCTO","1er TRIMESTRE","2do TRIMESTRE","3er TRIMESTRE","4to TRIMESTRE",null,"RUBROS Y/O PROYECTOS DE INVERSIÓN ASOCIADO","ÍTEM DEL PAA","PLAN INSTITUCIONAL RELACIONADO\n (Decreto 612 del 2018)","FECHA DEL REPORTE\n(DD/MM/AAAA)","AVANCE CUANTITATIVO","VALIDACIÓN DE CUMPLIMIENTO"," DESCRIPCIÓN CUALITATIVA DEL AVANCE","FECHA DEL REPORTE\n(DD/MM/AAAA)","AVANCE CUANTITATIVO\n(Acumulado)","VALIDACIÓN DE CUMPLIMIENTO"," DESCRIPCIÓN CUALITATIVA DEL AVANCE","FECHA DEL REPORTE\n(DD/MM/AAAA)","AVANCE CUANTITATIVO\n(Acumulado)","VALIDACIÓN DE CUMPLIMIENTO"," DESCRIPCIÓN CUALITATIVA DEL AVANCE","FECHA DEL REPORTE\n(DD/MM/AAAA)","AVANCE CUANTITATIVO\n(Acumulado)","VALIDACIÓN DE CUMPLIMIENTO"," DESCRIPCIÓN CUALITATIVA DEL AVANCE"]
[null,"4. Internacionalización, transformación productiva para la vida y acción climática",null,null,null,null,null,{"$f":"+IF(G12=\"Aplica plan de cierre brechas MIPG ejecución 2024 (https://docs.google.com/spreadsheets/d/12wAAPdMixVtk_TbZTJ1d8YFngavI0G5y/edit?usp=drive_link&ouid=110542959850421734996&rtpof=true&sd=true)\",\"Traer las actividades del plan de brechas y mapearlas en la columna R\",IF(G12=\"No aplica\",\"No Aplica\",\"\"))","v":""},"2.Consolidar la modernización de la entidad para fortalecer la planeación minero energética del país y el rol como el CIO del sector.",{"$f":"+IF(I12=\"1.Fortalecer la planeación y la investigación con estándares científicos, integrando los componentes social, ambiental, de cambio climático, territorial, étnico, de género, diferencial desde una mirada interseccional para la Transición Energética Justa.\",\"OBJETIVO1\",IF(I12=\"2.Consolidar la modernización de la entidad para fortalecer la planeación minero energética del país y el rol como el CIO del sector.\",\"OBJETIVO2\",IF(I12=\"3.Propiciar posturas técnicas disruptivas y transformadoras, desde la planificación minero energética integral, para propender por cambios en materia económica, social y fiscal del país.\",\"OBJETIVO3\",\"\")))","v":"OBJETIVO2"},"5.Fortalecer la gobernanza de la información, mediante la adopción de herramientas tecnológicas que faciliten la gestión adecuada de los datos e información para la planeación y la investigación.",null,null,null,null,null,null,null,"INCLUIR LOS MESES - GANT",null,null,null,{"$f":"IF(SUM(S12:V12)=0,\" \",SUM(S12:V12))","v":" "},null,null,null,null,null,{"$f":"IF(AB12=0,\" \",IF(AB12=S12,\"Cumplida\",(IF(AB12<=S12,\"Incumplida\",\"Pendiente\"))))","v":" "},null,null,null,{"$f":"IF(T12=0,\" \",IF(AF12=T12,\"Cumplida\",(IF(AF12<=T12,\"Incumplida\",\"Pendiente\"))))","v":" "},null,null,null,{"$f":"IF(U12=0,\" \",IF(AJ12=U12,\"Cumplida\",(IF(AJ12<=U12,\"Incumplida\",\"Pendiente\"))))","v":" "},null,null,null,{"$f":"IF(V12=0,\" \",IF(AN12=V12,\"Cumplida\",(IF(AN12<=V12,\"Incumplida\",\"Pendiente\"))))","v":" "}]
[null,null,null,null,null,null,null,{"$f":"+IF(G13=\"Aplica plan de cierre brechas MIPG ejecución 2024 (https://docs.google.com/spreadsheets/d/12wAAPdMixVtk_TbZTJ1d8YFngavI0G5y/edit?usp=drive_link&ouid=110542959850421734996&rtpof=true&sd=true)\",\"Traer las actividades del plan de brechas y mapearlas en la columna R\",IF(G13=\"No aplica\",\"No Aplica\",\"\"))","v":""},null,null,null,null,null,null,null,null,null,null,null,null,null,null," ",null,null,null,null,null," ",null,null,null," ",null,null,null," ",null,null,null," "]
[null,null,null,null,null,null,null,"",null,null,null,null,null,null,null,null,null,null,null,null,null,null," ",null,null,null,null,null," ",null,null,null," ",null,null,null," ",null,null,null," "]
[null,null,null,null,null,null,null,"",null,null,null,null,null,null,null,null,null,null,null,null,null,null," ",null,null,null,null,null," ",null,null,null," ",null,null,null," ",null,null,null," "]
[null,null,null,null,null,null,null,"","2.Consolidar la modernización de la entidad para fortalecer la planeación minero energética del país y el rol como el CIO del sector.",null,"3.Definir e implementar herramientas de diálogo y apropiación social de conocimiento científico. (Obj. 1 y 3)",null,null,null,null,null,null,null,null,null,null,null," ",null,null,null,null,null," ",null,null,null," ",null,null,null," ",null,null,null," "]
[null,null,null,null,null,null,null,"",null,null,null,null,null,null,null,null,null,null,null,null,null,null," ",null,null,null,null,null," ",null,null,null," ",null,null,null," ",null,null,null," "]
[null,null,null,null,null,null,null,"",null,null,null,null,null,null,null,null,null,null,null,null,null,null," ",null,null,null,null,null," ",null,null,null," ",null,null,null," ",null,null,null," "]
[null,null,null,null,null,null,null,"",null,null,null,null,null,null,null,null,null,null,null,null,null,null," ",null,null,null,null,null," ",null,null,null," ",null,null,null," ",null,null,null," "]
[null,null,null,null,null,null,null,"",null,null,null,null,null,null,null,null,null,null,null,null,null,null," ",null,null,null,null,null," ",null,null,null," ",null,null,null," ",null,null,null," "]
[null,null,null,null,null,null,null,"",null,null,null,null,null,null,null,null,null,null,null,null,null,null," ",null,null,null,null,null," ",null,null,null," ",null,null,null," ",null,null,null," "]
[null,null,null,null,null,null,null,"",null,null,null,null,null,null,null,null,null,null,null,null,null,null," ",null,null,null,null,null," ",null,null,null," ",null,null,null," ",null,null,null," "]
[null,null,null,null,null,null,null,"",null,null,null,null,null,null,null,null,null,null,null,null,null,null," ",null,null,null,null,null," ",null,null,null," ",null,null,null," ",null,null,null," "]
[null,null,null,null,null,null,null,"",null,null,null,null,null,null,null,null,null,null,null,null,null,null," ",null,null,null,null,null," ",null,null,null," ",null,null,null," ",null,null,null," "]
[null,null,null,null,null,null,null,"",null,null,null,null,null,null,null,null,null,null,null,null,null,null," ",null,null,null,null,null," ",null,null,null," ",null,null,null," ",null,null,null," "]
[null,null,null,null,null,null,null,"",null,null,null,null,null,null,null,null,null,null,null,null,null,null," ",null,null,null,null,null," ",null,null,null," ",null,null,null," ",null,null,null," "]
[null,null,null,null,null,null,null,"",null,null,null,null,null,null,null,null,null,null,null,null,null,null," ",null,null,null,null,null," ",null,null,null," ",null,null,null," ",null,null,null," "]
[null,null,null,null,null,null,null,"",null,null,null,null,null,null,null,null,null,null,null,null,null,null," ",null,null,null,null,null," ",null,null,null," ",null,null,null," ",null,null,null," "]
[null,null,null,null,null,null,null,"",null,null,null,null,null,null,null,null,null,null,null,null,null,null," ",null,null,null,null,null," ",null,null,null," ",null,null,null," ",null,null,null," "]
[null,null,null,null,null,null,null,"",null,null,null,null,null,null,null,null,null,null,null,null,null,null," ",null,null,null,null,null," ",null,null,null," ",null,null,null," ",null,null,null," "]
[null,null,null,null,null,null,null,"",null,null,null,null,null,null,null,null,null,null,null,null,null,null," ",null,null,null,null,null," ",null,null,null," ",null,null,null," ",null,null,null," "]
[null,null,null,null,null,null,null,"",null,null,null,null,null,null,null,null,null,null,null,null,null,null," ",null,null,null,null,null," ",null,null,null," ",null,null,null," ",null,null,null," "]
[null,null,null,null,null,null,null,"",null,null,null,null,null,null,null,null,null,null,null,null,null,null," ",null,null,null,null,null," ",null,null,null," ",null,null,null," ",null,null,null," "]
[null,null,null,null,null,null,null,"",null,null,null,null,null,null,null,null,null,null,null,null,null,null," ",null,null,null,null,null," ",null,null,null," ",null,null,null," ",null,null,null," "]
[null,null,null,null,null,null,null,"",null,null,null,null,null,null,null,null,null,null,null,null,null,null," ",null,null,null,null,null," ",null,null,null," ",null,null,null," ",null,null,null," "]
[null,null,null,null,null,null,null,"",null,null,null,null,null,null,null,null,null,null,null,null,null,null," ",null,null,null,null,null," ",null,null,null," ",null,null,null," ",null,null,null," "]
[null,null,null,null,null,null,null,"",null,null,null,null,null,null,null,null,null,null,null,null,null,null," ",null,null,null,null,null," ",null,null,null," ",null,null,null," ",null,null,null," "]
[null,null,null,null,null,null,null,"",null,null,null,null,null,null,null,null,null,null,null,null,null,null," ",null,null,null,null,null," ",null,null,null," ",null,null,null," ",null,null,null," "]
[null,null,null,null,null,null,null,"",null,null,null,null,null,null,null,null,null,null,null,null,null,null," ",null,null,null,null,null," ",null,null,null," ",null,null,null," ",null,null,null," "]
[null,null,null,null,null,null,null,"",null,null,null,null,null,null,null,null,null,null,null,null,null,null," ",null,null,null,null,null," ",null,null,null," ",null,null,null," ",null,null,null," "]
[null,null,null,null,null,null,null,"",null,null,null,null,null,null,null,null,null,null,null,null,null,null," ",null,null,null,null,null," ",null,null,null," ",null,null,null," ",null,null,null," "]
[null,null,null,null,null,null,null,"",null,null,null,null,null,null,null,null,null,null,null,null,null,null," ",null,null,null,null,null," ",null,null,null," ",null,null,null," ",null,null,null," "]
[null,null,null,null,null,null,null,"",null,null,null,null,null,null,null,null,null,null,null,null,null,null," ",null,null,null,null,null," ",null,null,null," ",null,null,null," ",null,null,null," "]
[null,null,null,null,null,null,null,"",null,null,null,null,null,null,null,null,null,null,null,null,null,null," ",null,null,null,null,null," ",null,null,null," ",null,null,null," ",null,null,null," "]
[null,null,null,null,null,null,null,"",null,null,null,null,null,null,null,null,null,null,null,null,null,null," ",null,null,null,null,null," ",null,null,null," ",null,null,null," ",null,null,null," "]
[null,null,null,null,null,null,null,"",null,null,null,null,null,null,null,null,null,null,null,null,null,null," ",null,null,null,null,null," ",null,null,null," ",null,null,null," ",null,null,null," "]
[null,null,null,null,null,null,null,"",null,null,null,null,null,null,null,null,null,null,null,null,null,null," "]
[null,null,null,null,null,null,null,"",null,null,null,null,null,null,null,null,null,null,null,null,null,null," ",null,null,null,null,null,{"$f":"IF(AB48=0,\" \",IF(AB48=S48,\"Cumplida\",(IF(AB48<=S48,\"Incumplida\",\"Pendiente\"))))","v":" "},null,null,null,{"$f":"IF(T48=0,\" \",IF(AF48=T48,\"Cumplida\",(IF(AF48<=T48,\"Incumplida\",\"Pendiente\"))))","v":" "},null,null,null,{"$f":"IF(U48=0,\" \",IF(AJ48=U48,\"Cumplida\",(IF(AJ48<=U48,\"Incumplida\",\"Pendiente\"))))","v":" "},null,null,null,{"$f":"IF(V48=0,\" \",IF(AN48=V48,\"Cumplida\",(IF(AN48<=V48,\"Incumplida\",\"Pendiente\"))))","v":" "}]
[null,null,null,null,null,null,null,"",null,null,null,null,null,null,null,null,null,null,null,null,null,null," ",null,null,null,null,null,{"$f":"IF(AB49=0,\" \",IF(AB49=S49,\"Cumplida\",(IF(AB49<=S49,\"Incumplida\",\"Pendiente\"))))","v":" "},null,null,null,{"$f":"IF(T49=0,\" \",IF(AF49=T49,\"Cumplida\",(IF(AF49<=T49,\"Incumplida\",\"Pendiente\"))))","v":" "},null,null,null,{"$f":"IF(U49=0,\" \",IF(AJ49=U49,\"Cumplida\",(IF(AJ49<=U49,\"Incumplida\",\"Pendiente\"))))","v":" "},null,null,null,{"$f":"IF(V49=0,\" \",IF(AN49=V49,\"Cumplida\",(IF(AN49<=V49,\"Incumplida\",\"Pendiente\"))))","v":" "}]
[null,null,null,null,null,null,null,"",null,null,null,null,null,null,null,null,null,null,null,null,null,null," ",null,null,null,null,null,{"$f":"IF(AB50=0,\" \",IF(AB50=S50,\"Cumplida\",(IF(AB50<=S50,\"Incumplida\",\"Pendiente\"))))","v":" "},null,null,null,{"$f":"IF(T50=0,\" \",IF(AF50=T50,\"Cumplida\",(IF(AF50<=T50,\"Incumplida\",\"Pendiente\"))))","v":" "},null,null,null,{"$f":"IF(U50=0,\" \",IF(AJ50=U50,\"Cumplida\",(IF(AJ50<=U50,\"Incumplida\",\"Pendiente\"))))","v":" "},null,null,null,{"$f":"IF(V50=0,\" \",IF(AN50=V50,\"Cumplida\",(IF(AN50<=V50,\"Incumplida\",\"Pendiente\"))))","v":" "}]
[null,null,null,null,null,null,null,"",null,null,null,null,null,null,null,null,null,null,null,null,null,null," ",null,null,null,null,null,{"$f":"IF(AB51=0,\" \",IF(AB51=S51,\"Cumplida\",(IF(AB51<=S51,\"Incumplida\",\"Pendiente\"))))","v":" "},null,null,null,{"$f":"IF(T51=0,\" \",IF(AF51=T51,\"Cumplida\",(IF(AF51<=T51,\"Incumplida\",\"Pendiente\"))))","v":" "},null,null,null,{"$f":"IF(U51=0,\" \",IF(AJ51=U51,\"Cumplida\",(IF(AJ51<=U51,\"Incumplida\",\"Pendiente\"))))","v":" "},null,null,null,{"$f":"IF(V51=0,\" \",IF(AN51=V51,\"Cumplida\",(IF(AN51<=V51,\"Incumplida\",\"Pendiente\"))))","v":" "}]
[null,null,null,null,null,null,null,"",null,null,null,null,null,null,null,null,null,null,null,null,null,null," "]
[null,null,null,null,null,null,null,"",null,null,null,null,null,null,null,null,null,null,null,null,null,null," "]
[null,null,null,null,null,null,null,"",null,null,null,null,null,null,null,null,null,null,null,null,null,null," ",null,null,null,null,null,{"$f":"IF(AB54=0,\" \",IF(AB54=S54,\"Cumplida\",(IF(AB54<=S54,\"Incumplida\",\"Pendiente\"))))","v":" "},null,null,null,{"$f":"IF(T54=0,\" \",IF(AF54=T54,\"Cumplida\",(IF(AF54<=T54,\"Incumplida\",\"Pendiente\"))))","v":" "},null,null,null,{"$f":"IF(U54=0,\" \",IF(AJ54=U54,\"Cumplida\",(IF(AJ54<=U54,\"Incumplida\",\"Pendiente\"))))","v":" "},null,null,null,{"$f":"IF(V54=0,\" \",IF(AN54=V54,\"Cumplida\",(IF(AN54<=V54,\"Incumplida\",\"Pendiente\"))))","v":" "}]
[null,null,null,null,null,null,null,"",null,null,null,null,null,null,null,null,null,null,null,null,null,null," ",null,null,null,null,null,{"$f":"IF(AB55=0,\" \",IF(AB55=S55,\"Cumplida\",(IF(AB55<=S55,\"Incumplida\",\"Pendiente\"))))","v":" "},null,null,null,{"$f":"IF(T55=0,\" \",IF(AF55=T55,\"Cumplida\",(IF(AF55<=T55,\"Incumplida\",\"Pendiente\"))))","v":" "},null,null,null,{"$f":"IF(U55=0,\" \",IF(AJ55=U55,\"Cumplida\",(IF(AJ55<=U55,\"Incumplida\",\"Pendiente\"))))","v":" "},null,null,null,{"$f":"IF(V55=0,\" \",IF(AN55=V55,\"Cumplida\",(IF(AN55<=V55,\"Incumplida\",\"Pendiente\"))))","v":" "}]
[null,null,null,null,null,null,null,"",null,null,null,null,null,null,null,null,null,null,null,null,null,null," "]
[null,null,null,null,null,null,null,"",null,null,null,null,null,null,null,null,null,null,null,null,null,null," "]
[null,null,null,null,null,null,null,"",null,null,null,null,null,null,null,null,null,null,null,null,null,null," ",null,null,null,null,null,{"$f":"IF(AB58=0,\" \",IF(AB58=S58,\"Cumplida\",(IF(AB58<=S58,\"Incumplida\",\"Pendiente\"))))","v":" "},null,null,null,{"$f":"IF(T58=0,\" \",IF(AF58=T58,\"Cumplida\",(IF(AF58<=T58,\"Incumplida\",\"Pendiente\"))))","v":" "},null,null,null,{"$f":"IF(U58=0,\" \",IF(AJ58=U58,\"Cumplida\",(IF(AJ58<=U58,\"Incumplida\",\"Pendiente\"))))","v":" "},null,null,null,{"$f":"IF(V58=0,\" \",IF(AN58=V58,\"Cumplida\",(IF(AN58<=V58,\"Incumplida\",\"Pendiente\"))))","v":" "}]
[null,null,null,null,null,null,null,"",null,null,null,null,null,null,null,null,null,null,null,null,null,null," "]
[null,null,null,null,null,null,null,"",null,null,null,null,null,null,null,null,null,null,null,null,null,null," "]
[null,null,null,null,null,null,null,"",null,null,null,null,null,null,null,null,null,null,null,null,null,null," ",null,null,null,null,null,{"$f":"IF(AB61=0,\" \",IF(AB61=S61,\"Cumplida\",(IF(AB61<=S61,\"Incumplida\",\"Pendiente\"))))","v":" "},null,null,null,{"$f":"IF(T61=0,\" \",IF(AF61=T61,\"Cumplida\",(IF(AF61<=T61,\"Incumplida\",\"Pendiente\"))))","v":" "},null,null,null,{"$f":"IF(U61=0,\" \",IF(AJ61=U61,\"Cumplida\",(IF(AJ61<=U61,\"Incumplida\",\"Pendiente\"))))","v":" "},null,null,null,{"$f":"IF(V61=0,\" \",IF(AN61=V61,\"Cumplida\",(IF(AN61<=V61,\"Incumplida\",\"Pendiente\"))))","v":" "}]
[null,null,null,null,null,null,null,"",null,null,null,null,null,null,null,null,null,null,null,null,null,null," "]
[null,null,null,null,null,null,null,"",null,null,null,null,null,null,null,null,null,null,null,null,null,null," "]

{"sheet":"Propuesta (2)","index":2,"n_rows":64,"n_cols":45,"rows_kept":64,"cut":false,"hidden":false,"merged":[[8,28,10,29],[1,1,4,1],[8,15,9,26],[10,15,10,17],[10,18,10,20],[10,21,10,23],[10,24,10,26],[1,2,4,30],[8,30,10,44],[8,1,10,2],[6,27,6,28],[8,8,10,8],[8,27,11,27],[8,4,10,7],[8,3,10,3],[8,9,10,14]]}
[]
[null,null,"FORMATO FORMULACIÓN Y REPORTE DE AVANCES DEL PLAN DE ACCIÓN\nUNIDAD DE PLANEACIÓN MINERO ENERGÉTICA - UPME",null,null,null,null,null,null,null,null,null,null,null,null,null,null,null,null,null,null,null,null,null,null,null,null,null,null,null,null,"Código: F-DE-09"]
[]
[null,null,null,null,null,null,null,null,null,null,null,null,null,null,null,null,null,null,null,null,null,null,null,null,null,null,null,null,null,null,null,"Versión No. 02"]
[]
[]
[null,null,null,"DEPENDENCIA FORMULADORA "]
[]
[null,"ARTICULACIÓN CON BASES PND 2022 - 2026",null," PLAN ESTRATÉGICO SECTORIAL-PES","2. ASOCIACIÓN CON LA PLANEACIÓN ESTRATÉGICA INSTITUCIONAL -PEI",null,null,null,"5. OTROS PLANES","3. FORMULACIÓN DE PLAN DE ACCIÓN",null,null,null,null,null,"PROGRAMACIÓN DE LA EJECUCIÓN DE LA ACTIVIDAD",null,null,null,null,null,null,null,null,null,null,null,"VALIDACIÓN DE LA PROGRAMACIÓN","4. FINANCIACIÓN",null,"ASOCIACIÓN CON LAS POLÍTICAS DE MIPG"]
[]
[null,null,null,null,null,null,null,null,null,null,null,null,null,null,null,"1er TRIMESTRE",null,null,"2do TRIMESTRE",null,null,"3er TRIMESTRE",null,null,"4to TRIMESTRE"]
[null,"TRANSFORMACIÓN","CATALIZADOR","COMPROMISO PES","OBJETIVO ESTRATÉGICO INSTITUCIONAL","OBJETIVO","ESTRATEGIA PEI","COMPROMISO PEI","PLAN INSTITUCIONAL RELACIONADO\n (Decreto 612 del 2018)","ENTREGABLE","ENTREGABLES \"OTROS PLANES\"","META","UNIDAD DE MEDIDA O CARÁCTERÍSTICA","PONDERACIÓN DEL ENTREGABLE","ACTIVIDADES CLAVE PARA MATERIALIZAR DEL PRODUCTO","ENERO","FEB","MARZO","ABRIL","MAYO","JUNIO","JULIO","AGOSTO","SEPTMB","OCTB","NOVIMB","DICIMB",null,"PROYECTOS DE INVERSIÓN ASOCIADO - LISTADO","ÍTEM(S) DEL PAA ASOCIADOS","1ª POLÍTICA MIPG ","2ª POLÍTICA MIPG"," DESCRIPCIÓN CUALITATIVA DEL AVANCE","FECHA DEL REPORTE\n(DD/MM/AAAA)","AVANCE CUANTITATIVO\n(Acumulado)","VALIDACIÓN DE CUMPLIMIENTO"," DESCRIPCIÓN CUALITATIVA DEL AVANCE","FECHA DEL REPORTE\n(DD/MM/AAAA)","AVANCE CUANTITATIVO\n(Acumulado)","VALIDACIÓN DE CUMPLIMIENTO"," DESCRIPCIÓN CUALITATIVA DEL AVANCE","FECHA DEL REPORTE\n(DD/MM/AAAA)","AVANCE CUANTITATIVO\n(Acumulado)","VALIDACIÓN DE CUMPLIMIENTO"," DESCRIPCIÓN CUALITATIVA DEL AVANCE"]
[null,null,null,null,null,{"$f":"+IF(E13=\"1.Fortalecer la planeación y la investigación con estándares científicos, integrando los componentes social, ambiental, de cambio climático, territorial, étnico, de género, diferencial desde una mirada interseccional para la Transición Energética Justa.\",\"OBJETIVO1\",IF(E13=\"2.Consolidar la modernización de la entidad para fortalecer la planeación minero energética del país y el rol como el CIO del sector.\",\"OBJETIVO2\",IF(E13=\"3.Propiciar posturas técnicas disruptivas y transformadoras, desde la planificación minero energética integral, para propender por cambios en materia económica, social y fiscal del país.\",\"OBJETIVO3\",\"\")))","v":""},null,"",null,null,null,null,null,null,null,null,null,null,null,null,null,null,null,null,null,null,null,{"$f":"IF(SUM(P13:AA13)=0,\" \",SUM(P13:AA13))","v":" "},null,null,null,null,null,null,null,{"$f":"IF(Y13=0,\" \",IF(AI13=Y13,\"Cumplida\",(IF(AI13<=Y13,\"Incumplida\",\"Pendiente\"))))","v":" "},null,null,null,{"$f":"IF(Z13=0,\" \",IF(AM13=Z13,\"Cumplida\",(IF(AM13<=Z13,\"Incumplida\",\"Pendiente\"))))","v":" "},null,null,null,{"$f":"IF(AA13=0,\" \",IF(AQ13=AA13,\"Cumplida\",(IF(AQ13<=AA13,\"Incumplida\",\"Pendiente\"))))","v":" "}]
[null,null,null,null,null,null,null,null,null,null,null,null,null,null,null,null,null,null,null,null,null,null,null,null,null,null,null,{"$f":"IF(SUM(P14:AA14)=0,\" \",SUM(P14:AA14))","v":" "},null,null,null,null,null,null,null," ",null,null,null," ",null,null,null," "]
[null,null,null,null,null,null,null,null,null,null,null,null,null,null,null,null,null,null,null,null,null,null,null,null,null,null,null," ",null,null,null,null,null,null,null," ",null,null,null," ",null,null,null," "]
[null,null,null,null,null,null,null,null,null,null,null,null,null,null,null,null,null,null,null,null,null,null,null,null,null,null,null," ",null,null,null,null,null,null,null," ",null,null,null," ",null,null,null," "]
[null,null,null,null,null,null,null,null,null,null,null,null,null,null,null,null,null,null,null,null,null,null,null,null,null,null,null," ",null,null,null,null,null,null,null," ",null,null,null," ",null,null,null," "]
[null,null,null,null,null,null,null,null,null,null,null,null,null,null,null,null,null,null,null,null,null,null,null,null,null,null,null," ",null,null,null,null,null,null,null," ",null,null,null," ",null,null,null," "]
[null,null,null,null,null,null,null,null,null,null,null,null,null,null,null,null,null,null,null,null,null,null,null,null,null,null,null," ",null,null,null,null,null,null,null," ",null,null,null," ",null,null,null," "]
[null,null,null,null,null,null,null,null,null,null,null,null,null,null,null,null,null,null,null,null,null,null,null,null,null,null,null," ",null,null,null,null,null,null,null," ",null,null,null," ",null,null,null," "]
[null,null,null,null,null,null,null,null,null,null,null,null,null,null,null,null,null,null,null,null,null,null,null,null,null,null,null," ",null,null,null,null,null,null,null," ",null,null,null," ",null,null,null," "]
[null,null,null,null,null,null,null,null,null,null,null,null,null,null,null,null,null,null,null,null,null,null,null,null,null,null,null," ",null,null,null,null,null,null,null," ",null,null,null," ",null,null,null," "]
[null,null,null,null,null,null,null,null,null,null,null,null,null,null,null,null,null,null,null,null,null,null,null,null,null,null,null," ",null,null,null,null,null,null,null," ",null,null,null," ",null,null,null," "]
[null,null,null,null,null,null,null,null,null,null,null,null,null,null,null,null,null,null,null,null,null,null,null,null,null,null,null," ",null,null,null,null,null,null,null," ",null,null,null," ",null,null,null," "]
[null,null,null,null,null,null,null,null,null,null,null,null,null,null,null,null,null,null,null,null,null,null,null,null,null,null,null," ",null,null,null,null,null,null,null," ",null,null,null," ",null,null,null," "]
[null,null,null,null,null,null,null,null,null,null,null,null,null,null,null,null,null,null,null,null,null,null,null,null,null,null,null," ",null,null,null,null,null,null,null," ",null,null,null," ",null,null,null," "]
[null,null,null,null,null,null,null,null,null,null,null,null,null,null,null,null,null,null,null,null,null,null,null,null,null,null,null," ",null,null,null,null,null,null,null," ",null,null,null," ",null,null,null," "]
[null,null,null,null,null,null,null,null,null,null,null,null,null,null,null,null,null,null,null,null,null,null,null,null,null,null,null," ",null,null,null,null,null,null,null," ",null,null,null," ",null,null,null," "]
[null,null,null,null,null,null,null,null,null,null,null,null,null,null,null,null,null,null,null,null,null,null,null,null,null,null,null," ",null,null,null,null,null,null,null," ",null,null,null," ",null,null,null," "]
[null,null,null,null,null,null,null,null,null,null,null,null,null,null,null,null,null,null,null,null,null,null,null,null,null,null,null," ",null,null,null,null,null,null,null," ",null,null,null," ",null,null,null," "]
[null,null,null,null,null,null,null,null,null,null,null,null,null,null,null,null,null,null,null,null,null,null,null,null,null,null,null," ",null,null,null,null,null,null,null," ",null,null,null," ",null,null,null," "]
[null,null,null,null,null,null,null,null,null,null,null,null,null,null,null,null,null,null,null,null,null,null,null,null,null,null,null," ",null,null,null,null,null,null,null," ",null,null,null," ",null,null,null," "]
[null,null,null,null,null,null,null,null,null,null,null,null,null,null,null,null,null,null,null,null,null,null,null,null,null,null,null," ",null,null,null,null,null,null,null," ",null,null,null," ",null,null,null," "]
[null,null,null,null,null,null,null,null,null,null,null,null,null,null,null,null,null,null,null,null,null,null,null,null,null,null,null," ",null,null,null,null,null,null,null," ",null,null,null," ",null,null,null," "]
[null,null,null,null,null,null,null,null,null,null,null,null,null,null,null,null,null,null,null,null,null,null,null,null,null,null,null," ",null,null,null,null,null,null,null," ",null,null,null," ",null,null,null," "]
[null,null,null,null,null,null,null,null,null,null,null,null,null,null,null,null,null,null,null,null,null,null,null,null,null,null,null," ",null,null,null,null,null,null,null," ",null,null,null," ",null,null,null," "]
[null,null,null,null,null,null,null,null,null,null,null,null,null,null,null,null,null,null,null,null,null,null,null,null,null,null,null," ",null,null,null,null,null,null,null," ",null,null,null," ",null,null,null," "]
[null,null,null,null,null,null,null,null,null,null,null,null,null,null,null,null,null,null,null,null,null,null,null,null,null,null,null," ",null,null,null,null,null,null,null," ",null,null,null," ",null,null,null," "]
[null,null,null,null,null,null,null,null,null,null,null,null,null,null,null,null,null,null,null,null,null,null,null,null,null,null,null," ",null,null,null,null,null,null,null," ",null,null,null," ",null,null,null," "]
[null,null,null,null,null,null,null,null,null,null,null,null,null,null,null,null,null,null,null,null,null,null,null,null,null,null,null," ",null,null,null,null,null,null,null," ",null,null,null," ",null,null,null," "]
[null,null,null,null,null,null,null,null,null,null,null,null,null,null,null,null,null,null,null,null,null,null,null,null,null,null,null," ",null,null,null,null,null,null,null," ",null,null,null," ",null,null,null," "]
[null,null,null,null,null,null,null,null,null,null,null,null,null,null,null,null,null,null,null,null,null,null,null,null,null,null,null," ",null,null,null,null,null,null,null," ",null,null,null," ",null,null,null," "]
[null,null,null,null,null,null,null,null,null,null,null,null,null,null,null,null,null,null,null,null,null,null,null,null,null,null,null," ",null,null,null,null,null,null,null," ",null,null,null," ",null,null,null," "]
[null,null,null,null,null,null,null,null,null,null,null,null,null,null,null,null,null,null,null,null,null,null,null,null,null,null,null," ",null,null,null,null,null,null,null," ",null,null,null," ",null,null,null," "]
[null,null,null,null,null,null,null,null,null,null,null,null,null,null,null,null,null,null,null,null,null,null,null,null,null,null,null," ",null,null,null,null,null,null,null," ",null,null,null," ",null,null,null," "]
[null,null,null,null,null,null,null,null,null,null,null,null,null,null,null,null,null,null,null,null,null,null,null,null,null,null,null," ",null,null,null,null,null,null,null," ",null,null,null," ",null,null,null," "]
[null,null,null,null,null,null,null,null,null,null,null,null,null,null,null,null,null,null,null,null,null,null,null,null,null,null,null," ",null,null,null,null,null,null,null," ",null,null,null," ",null,null,null," "]
[null,null,null,null,null,null,null,null,null,null,null,null,null,null,null,null,null,null,null,null,null,null,null,null,null,null,null," "]
[null,null,null,null,null,null,null,null,null,null,null,null,null,null,null,null,null,null,null,null,null,null,null,null,null,null,null," ",null,null,null,null,null,null,null,{"$f":"IF(Y49=0,\" \",IF(AI49=Y49,\"Cumplida\",(IF(AI49<=Y49,\"Incumplida\",\"Pendiente\"))))","v":" "},null,null,null,{"$f":"IF(Z49=0,\" \",IF(AM49=Z49,\"Cumplida\",(IF(AM49<=Z49,\"Incumplida\",\"Pendiente\"))))","v":" "},null,null,null,{"$f":"IF(AA49=0,\" \",IF(AQ49=AA49,\"Cumplida\",(IF(AQ49<=AA49,\"Incumplida\",\"Pendiente\"))))","v":" "}]
[null,null,null,null,null,null,null,null,null,null,null,null,null,null,null,null,null,null,null,null,null,null,null,null,null,null,null," ",null,null,null,null,null,null,null,{"$f":"IF(Y50=0,\" \",IF(AI50=Y50,\"Cumplida\",(IF(AI50<=Y50,\"Incumplida\",\"Pendiente\"))))","v":" "},null,null,null,{"$f":"IF(Z50=0,\" \",IF(AM50=Z50,\"Cumplida\",(IF(AM50<=Z50,\"Incumplida\",\"Pendiente\"))))","v":" "},null,null,null,{"$f":"IF(AA50=0,\" \",IF(AQ50=AA50,\"Cumplida\",(IF(AQ50<=AA50,\"Incumplida\",\"Pendiente\"))))","v":" "}]
[null,null,null,null,null,null,null,null,null,null,null,null,null,null,null,null,null,null,null,null,null,null,null,null,null,null,null," ",null,null,null,null,null,null,null,{"$f":"IF(Y51=0,\" \",IF(AI51=Y51,\"Cumplida\",(IF(AI51<=Y51,\"Incumplida\",\"Pendiente\"))))","v":" "},null,null,null,{"$f":"IF(Z51=0,\" \",IF(AM51=Z51,\"Cumplida\",(IF(AM51<=Z51,\"Incumplida\",\"Pendiente\"))))","v":" "},null,null,null,{"$f":"IF(AA51=0,\" \",IF(AQ51=AA51,\"Cumplida\",(IF(AQ51<=AA51,\"Incumplida\",\"Pendiente\"))))","v":" "}]
[null,null,null,null,null,null,null,null,null,null,null,null,null,null,null,null,null,null,null,null,null,null,null,null,null,null,null," ",null,null,null,null,null,null,null,{"$f":"IF(Y52=0,\" \",IF(AI52=Y52,\"Cumplida\",(IF(AI52<=Y52,\"Incumplida\",\"Pendiente\"))))","v":" "},null,null,null,{"$f":"IF(Z52=0,\" \",IF(AM52=Z52,\"Cumplida\",(IF(AM52<=Z52,\"Incumplida\",\"Pendiente\"))))","v":" "},null,null,null,{"$f":"IF(AA52=0,\" \",IF(AQ52=AA52,\"Cumplida\",(IF(AQ52<=AA52,\"Incumplida\",\"Pendiente\"))))","v":" "}]
[null,null,null,null,null,null,null,null,null,null,null,null,null,null,null,null,null,null,null,null,null,null,null,null,null,null,null," "]
[null,null,null,null,null,null,null,null,null,null,null,null,null,null,null,null,null,null,null,null,null,null,null,null,null,null,null," "]
[null,null,null,null,null,null,null,null,null,null,null,null,null,null,null,null,null,null,null,null,null,null,null,null,null,null,null," ",null,null,null,null,null,null,null,{"$f":"IF(Y55=0,\" \",IF(AI55=Y55,\"Cumplida\",(IF(AI55<=Y55,\"Incumplida\",\"Pendiente\"))))","v":" "},null,null,null,{"$f":"IF(Z55=0,\" \",IF(AM55=Z55,\"Cumplida\",(IF(AM55<=Z55,\"Incumplida\",\"Pendiente\"))))","v":" "},null,null,null,{"$f":"IF(AA55=0,\" \",IF(AQ55=AA55,\"Cumplida\",(IF(AQ55<=AA55,\"Incumplida\",\"Pendiente\"))))","v":" "}]
[null,null,null,null,null,null,null,null,null,null,null,null,null,null,null,null,null,null,null,null,null,null,null,null,null,null,null," ",null,null,null,null,null,null,null,{"$f":"IF(Y56=0,\" \",IF(AI56=Y56,\"Cumplida\",(IF(AI56<=Y56,\"Incumplida\",\"Pendiente\"))))","v":" "},null,null,null,{"$f":"IF(Z56=0,\" \",IF(AM56=Z56,\"Cumplida\",(IF(AM56<=Z56,\"Incumplida\",\"Pendiente\"))))","v":" "},null,null,null,{"$f":"IF(AA56=0,\" \",IF(AQ56=AA56,\"Cumplida\",(IF(AQ56<=AA56,\"Incumplida\",\"Pendiente\"))))","v":" "}]
[null,null,null,null,null,null,null,null,null,null,null,null,null,null,null,null,null,null,null,null,null,null,null,null,null,null,null," "]
[null,null,null,null,null,null,null,null,null,null,null,null,null,null,null,null,null,null,null,null,null,null,null,null,null,null,null," "]
[null,null,null,null,null,null,null,null,null,null,null,null,null,null,null,null,null,null,null,null,null,null,null,null,null,null,null," ",null,null,null,null,null,null,null,{"$f":"IF(Y59=0,\" \",IF(AI59=Y59,\"Cumplida\",(IF(AI59<=Y59,\"Incumplida\",\"Pendiente\"))))","v":" "},null,null,null,{"$f":"IF(Z59=0,\" \",IF(AM59=Z59,\"Cumplida\",(IF(AM59<=Z59,\"Incumplida\",\"Pendiente\"))))","v":" "},null,null,null,{"$f":"IF(AA59=0,\" \",IF(AQ59=AA59,\"Cumplida\",(IF(AQ59<=AA59,\"Incumplida\",\"Pendiente\"))))","v":" "}]
[null,null,null,null,null,null,null,null,null,null,null,null,null,null,null,null,null,null,null,null,null,null,null,null,null,null,null," "]
[null,null,null,null,null,null,null,null,null,null,null,null,null,null,null,null,null,null,null,null,null,null,null,null,null,null,null," "]
[null,null,null,null,null,null,null,null,null,null,null,null,null,null,null,null,null,null,null,null,null,null,null,null,null,null,null," ",null,null,null,null,null,null,null,{"$f":"IF(Y62=0,\" \",IF(AI62=Y62,\"Cumplida\",(IF(AI62<=Y62,\"Incumplida\",\"Pendiente\"))))","v":" "},null,null,null,{"$f":"IF(Z62=0,\" \",IF(AM62=Z62,\"Cumplida\",(IF(AM62<=Z62,\"Incumplida\",\"Pendiente\"))))","v":" "},null,null,null,{"$f":"IF(AA62=0,\" \",IF(AQ62=AA62,\"Cumplida\",(IF(AQ62<=AA62,\"Incumplida\",\"Pendiente\"))))","v":" "}]
[null,null,null,null,null,null,null,null,null,null,null,null,null,null,null,null,null,null,null,null,null,null,null,null,null,null,null," "]
[null,null,null,null,null,null,null,null,null,null,null,null,null,null,null,null,null,null,null,null,null,null,null,null,null,null,null," "]

{"sheet":"Hoja1","index":3,"n_rows":11,"n_cols":10,"rows_kept":11,"cut":false,"hidden":true,"merged":[]}
[]
[null,null,null,null,"ACTORES DEL PLAN ESTRATÉGICO",null,"ACTORES DEL PLAN ESTRATÉGICO SECTORIAL",null,"POLITICA","RESPONSABLE"]
[null,null,null,null,"Dirección General - ET",null,"Subdirección de Demanda",null,"POL-02 Integridad","Coordinador GIT de Gestión del Talento Humano y Servicio al Ciudadano"]
[null,null,"RESPONSABLES PLAN ESTRATEGICO",null,"Dirección General - GIT Planeación",null,"Subdirección de Energía Eléctrica",null,"POL-04 Gestión Presupuestal y Eficiencia del Gasto Público","Coordinador GIT de Gestión Financiera\nCoordinador GIT de Planeación"]
[null,null,"RESPONSABLES PLAN SECTORIAL",null,"Oficina de Gestión de la Información",null,"Subdirección de Hidrocarburos",null,"POL-07 Gobierno Digital","Jefe de oficina Gestión de la Información"]
[null,null,"RESPOSABLES PLAN BRECHAS",null,"Oficina de Gestión de Proyectos de Fondos",null,"Tranversales",null,"POL-08 Seguridad Digital","Jefe de oficina Gestión de la Información"]
[null,null,null,null,"Secretaría General",null,null,null,"POL-10 Mejora Normativa","Coordinador GIT Gestión Jurídica y\nContractual"]
[null,null,null,null,"Subdirección de Demanda",null,null,null,"POL-12 Racionalización de Trámites","Coordinador GIT de Planeación"]
[null,null,null,null,"Subdirección de Energía Eléctrica",null,null,null,"POL-14 Seguimiento y Evaluación del Desempeño Institucional","Coordinador GIT de Planeación"]
[null,null,null,null,"Subdirección de Hidrocarburos",null,null,null,"POL-17 Gestión Información Estadística","Jefe de Oficina Gestión de la Información"]
[null,null,null,null,"Subdirección de Minería",null,null,null,"POL-18 Gestión del Conocimiento","Secretario General- Coordinador GIT de Gestión del Talento Humano y Servicio al Ciudadano."]

{"sheet":"Sub. Energía Eléctrica","index":4,"n_rows":57,"n_cols":39,"rows_kept":57,"cut":false,"hidden":true,"merged":[[47,18,49,18],[47,19,49,19],[47,20,49,20],[47,21,49,21],[47,22,49,22],[53,18,56,18],[53,19,56,19],[53,20,56,20],[53,21,56,21],[53,22,56,22],[50,18,52,18],[50,19,52,19],[50,20,52,20],[50,21,52,21],[50,22,52,22],[41,19,42,19],[41,20,42,20],[39,19,40,19],[39,20,40,20],[43,18,46,18],[43,19,46,19],[43,20,46,20],[43,21,46,21],[43,22,46,22],[26,1,29,1],[26,2,29,2],[26,3,29,3],[26,7,29,7],[26,8,29,8],[26,9,29,9],[30,1,31,1],[30,9,31,9],[36,1,38,1],[32,1,35,1],[32,2,35,2],[32,3,35,3],[36,2,38,2],[36,3,38,3],[30,7,31,7],[30,8,31,8],[32,7,35,7],[32,8,35,8],[32,9,35,9],[36,7,38,7],[36,8,38,8],[36,9,38,9],[30,2,31,2],[30,3,31,3],[15,1,18,1],[15,2,18,2],[15,3,18,3],[15,7,18,7],[15,8,18,8],[15,9,18,9],[19,9,21,9],[19,1,21,1],[22,1,25,1],[22,2,25,2],[22,3,25,3],[22,7,25,7],[22,8,25,8],[22,9,25,9],[19,2,21,2],[19,3,21,3],[19,7,21,7],[19,8,21,8],[53,2,56,2],[53,3,56,3],[53,8,56,8],[53,9,56,9],[47,2,49,2],[47,3,49,3],[50,1,52,1],[50,2,52,2],[50,3,52,3],[50,7,52,7],[53,1,56,1],[47,8,49,8],[50,9,52,9],[50,8,52,8],[53,7,56,7],[43,1,46,1],[43,2,46,2],[43,3,46,3],[43,7,46,7],[43,9,46,9],[47,1,49,1],[47,7,49,7],[47,9,49,9],[39,1,40,1],[39,2,40,2],[39,3,40,3],[39,7,40,7],[39,8,40,8],[39,9,40,9],[41,1,42,1],[41,2,42,2],[41,3,42,3],[41,7,42,7],[41,8,42,8],[41,9,42,9],[43,8,46,8],[32,21,35,21],[32,22,35,22],[36,21,38,21],[36,22,38,22],[39,21,40,21],[39,22,40,22],[41,21,42,21],[41,22,42,22],[26,18,29,18],[30,18,31,18],[30,19,31,19],[30,20,31,20],[30,21,31,21],[30,22,31,22],[32,18,35,18],[32,19,35,19],[32,20,35,20],[36,18,38,18],[36,19,38,19],[36,20,38,20],[26,20,29,20],[26,21,29,21],[39,18,40,18],[41,18,42,18],[26,19,29,19],[26,22,29,22],[15,21,18,21],[15,22,18,22],[19,18,21,18],[19,19,21,19],[19,20,21,20],[19,21,21,21],[19,22,21,22],[15,18,18,18],[15,19,18,19],[15,20,18,20],[11,21,14,21],[11,22,14,22],[8,13,8,16],[8,17,10,17],[9,13,9,16],[10,20,10,21],[8,18,9,19],[22,18,25,18],[22,19,25,19],[22,20,25,20],[22,21,25,21],[22,22,25,22],[8,20,9,22],[11,1,14,1],[11,2,14,2],[11,3,14,3],[11,7,14,7],[11,8,14,8],[11,9,14,9],[11,18,14,18],[11,19,14,19],[11,20,14,20],[8,23,8,38],[9,23,9,26],[9,27,9,30],[9,31,9,34],[9,35,9,38],[1,1,4,1],[1,2,4,21],[1,22,2,22],[3,22,4,22],[6,7,6,11],[8,1,9,3],[8,7,9,11]]}
[]
[null,null,"FORMATO FORMULACIÓN Y REPORTE DE AVANCES DEL PLAN DE ACCIÓN\nUNIDAD DE PLANEACIÓN MINERO ENERGÉTICA - UPME",null,null,null,null,null,null,null,null,null,null,null,null,null,null,null,null,null,null,null,"Código: F-DE-09"]
[]
[null,null,null,null,null,null,null,null,null,null,null,null,null,null,null,null,null,null,null,null,null,null,"Versión No. 01"]
[]
[]
[null,null,null,"DEPENDENCIA FORMULADORA - colocar por dependencia al seleccionar ",null,null,null,"Grupo de Planeación",null,null,null,null,null,null,null,"CÓDIGO DE DEPENDENCIA",{"$f":"IFERROR(VLOOKUP(H7,Listas!G2:H19,2,0),\" \")","v":101}]
[]
[null,"ARTICULACIÓN CON BASES PND 2022 - 2026",null,null,null,null,null,"1. FORMULACIÓN DE PLAN DE ACCIÓN",null,null,null,null,null,null,null,null,null,"VALIDACIÓN DE LA PROGRAMACIÓN","2. FINANCIACIÓN",null,"3. ASOCIACIÓN CON MIPG Y OTROS PLANES",null,null,"4. REPORTE DE AVANCES"]
[null,null,null,null,null,null,null,null,null,null,null,null,null,"PROGRAMACIÓN DE LA EJECUCIÓN DE LA ACTIVIDAD",null,null,null,null,null,null,null,null,null,"REPORTE DE AVANCES AL TRIMESTRE I",null,null,null,"REPORTE DE AVANCES AL TRIMESTRE II",null,null,null,"REPORTE DE AVANCES AL TRIMESTRE III",null,null,null,"REPORTE DE AVANCES AL TRIMESTRE IV"]
[null,"TRANSFORMACIÓN - cambiarlo conforme con el plan ","CATALIZADOR - cambiarlo conforme con el plan ","ITEM - cambiarla por compromiso del plan estratégico sectorial - pedir a Vivi los compromisos de la UPME a partir de la selección del proceso ","Objetivo estratégico institucional ","Estrategia ","Compromiso","ID DEL PRODUCTO","PRODUCTO o entregable","META","Unidad de medida","ACTIVIDADES CLAVE PARA MATERIALIZAR DEL PRODUCTO","PONDERADO DE LA ACTIVIDAD eliminar","1er TRIMESTRE","2do TRIMESTRE","3er TRIMESTRE","4to TRIMESTRE",null,"RUBROS Y/O PROYECTOS DE INVERSIÓN ASOCIADO","Colocar el ítem (línea del PAA) que materializa la actividad - ANEXO LINEA PAA ","POLÍTICAS MIPG ASOCIADAS",null,"PLAN INSTITUCIONAL RELACIONADO\n (Decreto 612 del 2018)","FECHA DEL REPORTE\n(DD/MM/AAAA)","AVANCE CUANTITATIVO","VALIDACIÓN DE CUMPLIMIENTO"," DESCRIPCIÓN CUALITATIVA DEL AVANCE","FECHA DEL REPORTE\n(DD/MM/AAAA)","AVANCE CUANTITATIVO\n(Acumulado)","VALIDACIÓN DE CUMPLIMIENTO"," DESCRIPCIÓN CUALITATIVA DEL AVANCE","FECHA DEL REPORTE\n(DD/MM/AAAA)","AVANCE CUANTITATIVO\n(Acumulado)","VALIDACIÓN DE CUMPLIMIENTO"," DESCRIPCIÓN CUALITATIVA DEL AVANCE","FECHA DEL REPORTE\n(DD/MM/AAAA)","AVANCE CUANTITATIVO\n(Acumulado)","VALIDACIÓN DE CUMPLIMIENTO"," DESCRIPCIÓN CUALITATIVA DEL AVANCE"]
[null,"1. Ordenamiento del territorio alrededor del agua y justicia ambiental","B. Transición energética justa, segura, confiable y eficiente para alcanzar carbono neutralidad y consolidar territorios resilientes al clima","2. Acelerar una transición energética justa, basada en el respeto a la naturaleza, la justicia social y la soberanía con seguridad, confiabilidad y eficiencia",null,null,null,"150-1","Indice de Cobertura del servicio de energía eléctrica ICEE",1,null,"Gestionar la información reportada por los ORs en cumplimiento de la Res. UPME 283/2021 y solicitar la información a los proveedores (SSPD, IPSE, DANE).",0.5,0.3,0.3,0.3,0.1,{"$f":"IF(SUM(N12:Q12)=0,\" \",SUM(N12:Q12))","v":0.99999999999999989},"Inversión - Implementación de acciones para la confiabilidad del subsector eléctrico a nivel Nacional",null,"Gestión del conocimiento y la innovación",null,"N.A.",null,null,{"$f":"IF(Y12=0,\" \",IF(Y12=N12,\"Cumplida\",(IF(Y12<=N12,\"Incumplida\",\"Pendiente\"))))","v":" "},null,null,null,{"$f":"IF(O12=0,\" \",IF(AC12=O12,\"Cumplida\",(IF(AC12<=O12,\"Incumplida\",\"Pendiente\"))))","v":"Incumplida"},null,null,null,{"$f":"IF(P12=0,\" \",IF(AG12=P12,\"Cumplida\",(IF(AG12<=P12,\"Incumplida\",\"Pendiente\"))))","v":"Incumplida"},null,null,null,{"$f":"IF(Q12=0,\" \",IF(AK12=Q12,\"Cumplida\",(IF(AK12<=Q12,\"Incumplida\",\"Pendiente\"))))","v":"Incumplida"}]
[null,null,null,null,null,null,null,null,null,null,null,"Elaborar el documento metodologíco en su versión preliminar y los cálculos del ICEE",0.4,null,0.5,0.5,null,1,null,null,null,null,null,null,null," ",null,null,null,"Incumplida",null,null,null,"Incumplida",null,null,null," "]
[null,null,null,null,null,null,null,null,null,null,null,"Socializar al interior de la UPME el documento metodológico y los resultados del ICEE.",0.05,0,0.5,0.5,0,1,null,null,null,null,null,null,null," ",null,null,null,"Incumplida",null,null,null,"Incumplida",null,null,null," "]
[null,null,null,null,null,null,null,null,null,null,null,"Publicar para comentarios el documento metodológico y los resultados del ICEE.",0.05,null,null,1,null,1,null,null,null,null,null,null,null," ",null,null,null," ",null,null,null,"Incumplida",null,null,null," "]
[null,"1. Ordenamiento del territorio alrededor del agua y justicia ambiental","B. Transición energética justa, segura, confiable y eficiente para alcanzar carbono neutralidad y consolidar territorios resilientes al clima","2. Acelerar una transición energética justa, basada en el respeto a la naturaleza, la justicia social y la soberanía con seguridad, confiabilidad y eficiencia",null,null,null,"150-2","Plan Indicativo de Expansión de Cobertura - PIEC",1,null,"Gestionar la información base del PIEC debidamente estructurada",0.2,0.8,0.2,null,null,1,"Inversión - Implementación de acciones para la confiabilidad del subsector eléctrico a nivel Nacional",null,"Gestión del conocimiento y la innovación",null,"N.A.",null,null," ",null,null,null,"Incumplida",null,null,null," ",null,null,null," "]
[null,null,null,null,null,null,null,null,null,null,null,"Elaborar el documento que describa la metodología del PIEC y estructurar las alternativas de energización en Homer Pro",0.5,0.3,0.7,null,null,1,null,null,null,null,null,null,null," ",null,null,null,"Incumplida",null,null,null," ",null,null,null," "]
[null,null,null,null,null,null,null,null,null,null,null,"Presentar al interior de la UPME los resultados del PIEC en su versión preliminar",0.2,null,0.5,0.5,null,1,null,null,null,null,null,null,null," ",null,null,null,"Incumplida",null,null,null,"Incumplida",null,null,null," "]
[null,null,null,null,null,null,null,null,null,null,null,"Publicar para comentarios el documento PIEC y sus resultados",0.1,null,null,0.5,0.5,1,null,null,null,null,null,null,null," ",null,null,null," ",null,null,null,"Incumplida",null,null,null,"Incumplida"]
[null,"4. Internacionalización, transformación productiva para la vida y acción climática","B. Transición energética justa, segura, confiable y eficiente para alcanzar carbono neutralidad y consolidar territorios resilientes al clima","2. Acelerar una transición energética justa, basada en el respeto a la naturaleza, la justicia social y la soberanía con seguridad, confiabilidad y eficiencia",null,null,null,"150-3","Conceptos para Planes de Cobertura de los OR PECOR emitidos\n(Según Demanda)",3,null,"Gestionar la Información que reporta cada Operador de Red - OR en cumplimiento de la Res. UPME 283/2021",0.4,0.25,0.25,0.25,0.25,1,"Inversión - Implementación de acciones para la confiabilidad del subsector eléctrico a nivel Nacional",null,"Fortalecimiento organizacional y simplificación de procesos",null,"N.A.",null,null," ",null,null,null,"Incumplida",null,null,null,"Incumplida",null,null,null,"Incumplida"]
[null,null,null,null,null,null,null,null,null,null,null,"Actualizar los costos de la alternativa solar fotovoltaica y realizar el análisis de las alternativas",0.4,0.25,0.25,0.25,0.25,1,null,null,null,null,null,null,null," ",null,null,null,"Incumplida",null,null,null,"Incumplida",null,null,null,"Incumplida"]
[null,null,null,null,null,null,null,null,null,null,null,"Elaborar y emitir el concepto de evaluación PECOR.",0.2,0.25,0.25,0.25,0.25,1,null,null,null,null,null,null,null," ",null,null,null,"Incumplida",null,null,null,"Incumplida",null,null,null,"Incumplida"]
[null,"4. Internacionalización, transformación productiva para la vida y acción climática","B. Transición energética justa, segura, confiable y eficiente para alcanzar carbono neutralidad y consolidar territorios resilientes al clima","2. Acelerar una transición energética justa, basada en el respeto a la naturaleza, la justicia social y la soberanía con seguridad, confiabilidad y eficiencia",null,null,null,"150-4","Plan de Expansión de Transmisión de Energía Eléctrica en version final para aprobación por parte del MME",1,null,"Validar los objetivos y estrategias del plan",0.17,0.5,0.5,null,null,1,"Inversión - Implementación de acciones para la confiabilidad del subsector eléctrico a nivel Nacional",null,"Gestión del conocimiento y la innovación",null,"N.A.",null,null," ",null,null,null,"Incumplida",null,null,null," ",null,null,null," "]
[null,null,null,null,null,null,null,null,null,null,null,"Actualizar las bases de datos para la formulación del Plan de Expansión de transmisión (Ajuste de escenarios de demanda, despachos de generación y ajustes de red)",0.17,0.03,0.27,0.5,0.2,1,null,null,null,null,null,null,null," ",null,null,null,"Incumplida",null,null,null,"Incumplida",null,null,null,"Incumplida"]
[null,null,null,null,null,null,null,null,null,null,null,"Realizar los análisis, simulaciones e identificar y proponer las obras de expansión, documentar el plan en versión preliminar y publicar para comentarios",0.33,null,null,0.5,0.5,1,null,null,null,null,null,null,null," ",null,null,null," ",null,null,null,"Incumplida",null,null,null,"Incumplida"]
[null,null,null,null,null,null,null,null,null,null,null,"Realizar los ajustes a partir de los comentarios, nuevos análisis y simulaciones, validar la versión definitiva del plan y remitir al MME para aprobación",0.33,null,null,null,1,1,null,null,null,null,null,null,null," ",null,null,null," ",null,null,null," ",null,null,null,"Incumplida"]
[null,"4. Internacionalización, transformación productiva para la vida y acción climática","B. Transición energética justa, segura, confiable y eficiente para alcanzar carbono neutralidad y consolidar territorios resilientes al clima","2. Acelerar una transición energética justa, basada en el respeto a la naturaleza, la justicia social y la soberanía con seguridad, confiabilidad y eficiencia",null,null,null,"150-5","Conceptos de conexión de solicitudes de capacidad de transporte para proyectos Clase 1, conforme a R CREG 075 de 2021, emitidos\n(Segun Demanda)\n",1,null,"Realizar la revisión de completitud y análisis preliminares para observaciones de las solicitudes de conexión de proyectos de generación y consumo de energía eléctrica",0.1,null,0.75,0.25,null,1,"Inversión - Implementación de acciones para la confiabilidad del subsector eléctrico a nivel Nacional",null,"Fortalecimiento organizacional y simplificación de procesos",null,"N.A.",null,null," ",null,null,null,"Incumplida",null,null,null,"Incumplida",null,null,null," "]
[null,null,null,null,null,null,null,null,null,null,null,"Realizar los análisis de capacidad y aplicación de criterios de asignación de las solicitudes de conexión, y publicar el listado de proyectos que requieren y no requieren expansión ordenados de acuerdo a fecha de radicación. ",0.3,null,null,0.75,0.25,1,null,null,null,null,null,null,null," ",null,null,null," ",null,null,null,"Incumplida",null,null,null,"Incumplida"]
[null,null,null,null,null,null,null,null,null,null,null,"Procesar los resultados de las solicitudes de conexión y emitir los conceptos de conexión de proyectos que no requieren expansión",0.3,null,null,null,1,1,null,null,null,null,null,null,null," ",null,null,null," ",null,null,null," ",null,null,null,"Incumplida"]
[null,null,null,null,null,null,null,null,null,null,null,"Análizar las solicitudes de conexión que requieren expansión, definir expansiones pertinentes y emitir los respectivos conceptos.",0.3,null,null,null,1,1,null,null,null,null,null,null,null," ",null,null,null," ",null,null,null," ",null,null,null,"Incumplida"]
[null,"4. Internacionalización, transformación productiva para la vida y acción climática","B. Transición energética justa, segura, confiable y eficiente para alcanzar carbono neutralidad y consolidar territorios resilientes al clima","2. Acelerar una transición energética justa, basada en el respeto a la naturaleza, la justicia social y la soberanía con seguridad, confiabilidad y eficiencia",null,null,null,"150-6","Conceptos de conexión de solicitudes de proyectos del STR, emitidos\n\n(Segun Demanda)",0.9,null,"Preparar bases de datos, realizar simulaciones, análisis y evaluaciones de las solicitudes de proyectos del STR",1,null,0.3,0.4,0.3,1,"Inversión - Implementación de acciones para la confiabilidad del subsector eléctrico a nivel Nacional",null,"Fortalecimiento organizacional y simplificación de procesos",null,"N.A.",null,null," ",null,null,null,"Incumplida",null,null,null,"Incumplida",null,null,null,"Incumplida"]
[null,null,null,null,null,null,null,null,null,null,null,"Emitir el concepto correspondientente",null,null,0.2,0.4,0.4,1,null,null,null,null,null,null,null," ",null,null,null,"Incumplida",null,null,null,"Incumplida",null,null,null,"Incumplida"]
[null,"4. Internacionalización, transformación productiva para la vida y acción climática","B. Transición energética justa, segura, confiable y eficiente para alcanzar carbono neutralidad y consolidar territorios resilientes al clima","2. Acelerar una transición energética justa, basada en el respeto a la naturaleza, la justicia social y la soberanía con seguridad, confiabilidad y eficiencia",null,null,null,"150-7","Plan de Expansión de Generación aprobado y enviado al MME",1,null,"Validar los objetivos y escenarios del Plan de Expansión formulados en el 2022",0.15,0.5,0.5,null,null,1,"Inversión - Desarrollo de estrategias para dotar de sentido social y ambiental la planeación minero energética a nivel Nacional",null,"Gestión del conocimiento y la innovación",null,"N.A.",null,null,{"$f":"IF(Y33=0,\" \",IF(Y33=N33,\"Cumplida\",(IF(Y33<=N33,\"Incumplida\",\"Pendiente\"))))","v":" "},null,null,null,{"$f":"IF(O33=0,\" \",IF(AC33=O33,\"Cumplida\",(IF(AC33<=O33,\"Incumplida\",\"Pendiente\"))))","v":"Incumplida"},null,null,null,{"$f":"IF(P33=0,\" \",IF(AG33=P33,\"Cumplida\",(IF(AG33<=P33,\"Incumplida\",\"Pendiente\"))))","v":" "},null,null,null,{"$f":"IF(Q33=0,\" \",IF(AK33=Q33,\"Cumplida\",(IF(AK33<=Q33,\"Incumplida\",\"Pendiente\"))))","v":" "}]
[null,null,null,null,null,null,null,null,null,null,null,"Actualizar bases de datos con la infraestructura, series y demanda para los análisis del Plan Expansión",0.25,0.5,0.3,0.2,null,1,null,null,null,null,null,null,null," ",null,null,null,"Incumplida",null,null,null,"Incumplida",null,null,null," "]
[null,null,null,null,null,null,null,null,null,null,null,"Realizar el procesamiento de información, simulaciones de escenarios, análisis y documentación del Plan de Expansión de Generación versión preliminar para consulta pública",0.25,null,null,0.3,0.7,1,null,null,null,null,null,null,null," ",null,null,null," ",null,null,null,"Incumplida",null,null,null,"Incumplida"]
[null,null,null,null,null,null,null,null,null,null,null,"Ajustar el Plan de Expansión de Generación acorde con comentarios, aprobar y enviar  la MME al versión final",0.35,null,null,null,1,1,null,null,null,null,null,null,null," ",null,null,null," ",null,null,null," ",null,null,null,"Incumplida"]
[null,"4. Internacionalización, transformación productiva para la vida y acción climática","B. Transición energética justa, segura, confiable y eficiente para alcanzar carbono neutralidad y consolidar territorios resilientes al clima","2. Acelerar una transición energética justa, basada en el respeto a la naturaleza, la justicia social y la soberanía con seguridad, confiabilidad y eficiencia",null,null,null,"150-8","Informe trimestral de seguimiento al estado de los proyectos de generación futuros con compromisos publicado.",4,null,"Elaborar la base de datos con los informes de auditoria a los proyectos de generación futuros con compromisos",0.2,0.25,0.25,0.25,0.25,1,"Inversión - Desarrollo de estrategias para dotar de sentido social y ambiental la planeación minero energética a nivel Nacional",null,"Fortalecimiento organizacional y simplificación de procesos",null,"N.A.",null,null," ",null,null,null,"Incumplida",null,null,null,"Incumplida",null,null,null,"Incumplida"]
[null,null,null,null,null,null,null,null,null,null,null,"Revisar el estado del avance del proyecto descrito en los informes de auditoría y proyectar el informe.",0.5,0.25,0.25,0.25,0.25,1,null,null,null,null,null,null,null," ",null,null,null,"Incumplida",null,null,null,"Incumplida",null,null,null,"Incumplida"]
[null,null,null,null,null,null,null,null,null,null,null,"Validar y públicar el informe trimestral",0.3,0.25,0.25,0.25,0.25,1,null,null,null,null,null,null,null," ",null,null,null,"Incumplida",null,null,null,"Incumplida",null,null,null,"Incumplida"]
[null,"4. Internacionalización, transformación productiva para la vida y acción climática","B. Transición energética justa, segura, confiable y eficiente para alcanzar carbono neutralidad y consolidar territorios resilientes al clima","2. Acelerar una transición energética justa, basada en el respeto a la naturaleza, la justicia social y la soberanía con seguridad, confiabilidad y eficiencia",null,null,null,"150-9","Informes de conceptos de potencial hidroenergético emitidos\n(Según demanda)",4,null,"Emitir los conceptos de potencial hidroenergéticos acorde con las solicitudes de las autoridades ambientales.",0.7,0.25,0.25,0.25,0.25,1,"Inversión - Desarrollo de estrategias para dotar de sentido social y ambiental la planeación minero energética a nivel Nacional",null,"Fortalecimiento organizacional y simplificación de procesos",null,"N.A.",null,null," ",null,null,null,"Incumplida",null,null,null,"Incumplida",null,null,null,"Incumplida"]
[null,null,null,null,null,null,null,null,null,null,null,"Elaborar y publicar informes trimestrales de conceptos de potencial hidroenergético emitidos",0.3,0.25,0.25,0.25,0.25,1,null,null,null,null,null,null,null," ",null,null,null,"Incumplida",null,null,null,"Incumplida",null,null,null,"Incumplida"]
[null,"4. Internacionalización, transformación productiva para la vida y acción climática","B. Transición energética justa, segura, confiable y eficiente para alcanzar carbono neutralidad y consolidar territorios resilientes al clima","2. Acelerar una transición energética justa, basada en el respeto a la naturaleza, la justicia social y la soberanía con seguridad, confiabilidad y eficiencia",null,null,null,"150-10","Informe de registro de proyectos de generación actualizado y publicado.",12,null,"Registrar los proyectos de promotores que cumplan los requerimientos normativos aplicables.",0.3,0.25,0.25,0.25,0.25,1,"Inversión - Desarrollo de estrategias para dotar de sentido social y ambiental la planeación minero energética a nivel Nacional",null,"Fortalecimiento organizacional y simplificación de procesos",null,"N.A.",null,null," ",null,null,null,"Incumplida",null,null,null,"Incumplida",null,null,null,"Incumplida"]
[null,null,null,null,null,null,null,null,null,null,null,"Elaborar y publicar mensualmente el informe de registro de proyectos",0.45,0.25,0.25,0.25,0.25,1,null,null,null,null,null,null,null," ",null,null,null,"Incumplida",null,null,null,"Incumplida",null,null,null,"Incumplida"]
[null,"4. Internacionalización, transformación productiva para la vida y acción climática","B. Transición energética justa, segura, confiable y eficiente para alcanzar carbono neutralidad y consolidar territorios resilientes al clima","2. Acelerar una transición energética justa, basada en el respeto a la naturaleza, la justicia social y la soberanía con seguridad, confiabilidad y eficiencia",null,null,null,"150-12","Documento de identificación de posibilidades y condicionantes de los proyectos de transmisión (Alertas tempranas: físicas, sociales, ambientales, etc.) en fase de planeación y en fase de convocatoria.\n",10,null,"Realizar la solicitud de información socio-ambiental a las entidades involucradas",0.2,1,null,null,null,1,"Inversión - Desarrollo de estrategias para dotar de sentido social y ambiental la planeación minero energética a nivel Nacional",null,"Gestión del conocimiento y la innovación",null,"N.A.",null,null," ",null,null,null," ",null,null,null," ",null,null,null," "]
[null,null,null,null,null,null,null,null,null,null,null,"Elaborar el informe de análisis preliminar de obras - documento de alertas tempranas en fase de planeación (Primer momento)",0.2,null,0.5,0.5,null,1,null,null,null,null,null,null,null," ",null,null,null,"Incumplida",null,null,null,"Incumplida",null,null,null," "]
[null,null,null,null,null,null,null,null,null,null,null,"Elaborar el informe de análisis de obras - documento definitivo de alertas tempranas en fase de planeación\n(Segundo momento)",0.25,null,null,null,1,1,null,null,null,null,null,null,null," ",null,null,null," ",null,null,null," ",null,null,null,"Incumplida"]
[null,null,null,null,null,null,null,null,null,null,null,"Elaborar documento de alertas tempranas para proyectos objeto de convocatorias públicas",0.35,0.25,0.25,0.25,0.25,1]
[null,"4. Internacionalización, transformación productiva para la vida y acción climática","B. Transición energética justa, segura, confiable y eficiente para alcanzar carbono neutralidad y consolidar territorios resilientes al clima","2. Acelerar una transición energética justa, basada en el respeto a la naturaleza, la justicia social y la soberanía con seguridad, confiabilidad y eficiencia",null,null,null,"150-12","Anexo técnicos para  convocatoria HVDC \n(En el marco del convenio UPME - FENOGE 80905-035 2022, para realizar la consultoria que se encargará de desarrollar definirá las especificaciones técnicas de una línea de transmisión de alto voltaje en corriente directa (HVDC))\n",1,null,"Acompañar el proceso de respuestas a las consultas formuladas por parte de los interesados al sondeo de mercado.\n",0.25,1,null,null,null,1,"Inversión - Desarrollo de estrategias para dotar de sentido social y ambiental la planeación minero energética a nivel Nacional",null,"Fortalecimiento organizacional y simplificación de procesos",null,"N.A.",null,null,{"$f":"IF(Y48=0,\" \",IF(Y48=N48,\"Cumplida\",(IF(Y48<=N48,\"Incumplida\",\"Pendiente\"))))","v":" "},null,null,null,{"$f":"IF(O48=0,\" \",IF(AC48=O48,\"Cumplida\",(IF(AC48<=O48,\"Incumplida\",\"Pendiente\"))))","v":" "},null,null,null,{"$f":"IF(P48=0,\" \",IF(AG48=P48,\"Cumplida\",(IF(AG48<=P48,\"Incumplida\",\"Pendiente\"))))","v":" "},null,null,null,{"$f":"IF(Q48=0,\" \",IF(AK48=Q48,\"Cumplida\",(IF(AK48<=Q48,\"Incumplida\",\"Pendiente\"))))","v":" "}]
[null,null,null,null,null,null,null,null,null,null,null,"Acompañar el proceso de elaboración de Estudios previos, y respuesyas a las consultas por parte de los interesados en el proceso contractual.",0.25,0.5,0.5,null,null,1,null,null,null,null,null,null,null," ",null,null,null,"Incumplida",null,null,null," ",null,null,null," "]
[null,null,null,null,null,null,null,null,null,null,null,"Validar los entregables y el informe final",0.5,null,0.5,0.5,null,1,null,null,null,null,null,null,null," ",null,null,null,"Incumplida",null,null,null,"Incumplida",null,null,null," "]
[null,"4. Internacionalización, transformación productiva para la vida y acción climática","B. Transición energética justa, segura, confiable y eficiente para alcanzar carbono neutralidad y consolidar territorios resilientes al clima","2. Acelerar una transición energética justa, basada en el respeto a la naturaleza, la justicia social y la soberanía con seguridad, confiabilidad y eficiencia",null,null,null,"150-13","Procesos de selección de Interventores e Inversionistas",10,null,"Publicar la convocatoria en página web",0.1,0.25,0.25,0.25,0.25,1,"Inversión - Desarrollo de estrategias para dotar de sentido social y ambiental la planeación minero energética a nivel Nacional",null,"Fortalecimiento organizacional y simplificación de procesos",null,"N.A.",null,null,{"$f":"IF(Y51=0,\" \",IF(Y51=N51,\"Cumplida\",(IF(Y51<=N51,\"Incumplida\",\"Pendiente\"))))","v":" "},null,null,null,{"$f":"IF(O51=0,\" \",IF(AC51=O51,\"Cumplida\",(IF(AC51<=O51,\"Incumplida\",\"Pendiente\"))))","v":"Incumplida"},null,null,null,{"$f":"IF(P51=0,\" \",IF(AG51=P51,\"Cumplida\",(IF(AG51<=P51,\"Incumplida\",\"Pendiente\"))))","v":"Incumplida"},null,null,null,{"$f":"IF(Q51=0,\" \",IF(AK51=Q51,\"Cumplida\",(IF(AK51<=Q51,\"Incumplida\",\"Pendiente\"))))","v":"Incumplida"}]
[null,null,null,null,null,null,null,null,null,null,null,"Realizar la selección del interventor",0.3,0.25,0.25,0.25,0.25,1]
[null,null,null,null,null,null,null,null,null,null,null,"Realizar audiencia de selección del inversionista",0.4,0.25,0.25,0.25,0.25,1]
[null,"4. Internacionalización, transformación productiva para la vida y acción climática","B. Transición energética justa, segura, confiable y eficiente para alcanzar carbono neutralidad y consolidar territorios resilientes al clima","2. Acelerar una transición energética justa, basada en el respeto a la naturaleza, la justicia social y la soberanía con seguridad, confiabilidad y eficiencia",null,null,null,"150-14","Informes de interventoría a proyectos en ejecución objeto de convocatoria pública",12,null,"Realizar informe avance ejecución proyectos objetos de convocatorias",0.2,0.25,0.25,0.25,0.25,1,"Inversión - Desarrollo de estrategias para dotar de sentido social y ambiental la planeación minero energética a nivel Nacional",null,"Fortalecimiento organizacional y simplificación de procesos",null,"N.A.",null,null,{"$f":"IF(Y54=0,\" \",IF(Y54=N54,\"Cumplida\",(IF(Y54<=N54,\"Incumplida\",\"Pendiente\"))))","v":" "},null,null,null,{"$f":"IF(O54=0,\" \",IF(AC54=O54,\"Cumplida\",(IF(AC54<=O54,\"Incumplida\",\"Pendiente\"))))","v":"Incumplida"},null,null,null,{"$f":"IF(P54=0,\" \",IF(AG54=P54,\"Cumplida\",(IF(AG54<=P54,\"Incumplida\",\"Pendiente\"))))","v":"Incumplida"},null,null,null,{"$f":"IF(Q54=0,\" \",IF(AK54=Q54,\"Cumplida\",(IF(AK54<=Q54,\"Incumplida\",\"Pendiente\"))))","v":"Incumplida"}]
[null,null,null,null,null,null,null,null,null,null,null,"Realizar reuniones de seguimiento de interventoría",0.2,0.25,0.25,0.25,0.25,1,null,null,null,null,null,null,null," ",null,null,null,"Incumplida",null,null,null,"Incumplida",null,null,null,"Incumplida"]
[null,null,null,null,null,null,null,null,null,null,null,"Revisar informes de interventoría",0.5,0.25,0.25,0.25,0.25,1]
[null,null,null,null,null,null,null,null,null,null,null,"Actualizar Geovisor de Convocatorias",0.1,0.25,0.25,0.25,0.25,1]